Workbook

Sheet IA MARKS ENTRY & CO attainment
B1: Sapthagiri College of Engineering
B2: Department of Electronics and Communication Engineering
C3: Basic Electronics (15ELN15) G and H sections
B4: II Semester Test marks for EVEN Sem 2015-16
A5: Sl. No. | B5: USN | C5: NAME | D5: I Internal | F5: II Internals | G5: III IA | I5: Course Objectives
D8: CO 1 | E8: CO2 | F8: CO3 | G8: CO4 | H8: C | I8: CO1 | K8: CO2 | M8: CO3 | O8: CO 4 | Q8: C0 5
C9: MAX MARKS | D9: 20 | E9: 20 | F9: 20 | G9: 20 | H9: 20
I10: % | K10: % | M10: % | O10: % | Q10: %
A11: 1 | B11: 1SG15EC001 | C11: ABHIJITH N | D11: 17 | E11: 17 | F11: 13 | G11: 0 | H11: =G11 -> 0 | I11: =D11/0.2 -> 85 | J11: =IF(I11<60,"N","Y") -> Y | K11: =E11/0.2 -> 85 | L11: =IF(K11<60,"N","Y") -> Y | M11: =((F11)/0.2) -> 65 | N11: =IF(M11<60,"N","Y") -> Y | O11: =(G11/0.2) -> 0 | P11: =IF(O11<60,"N","Y") -> N | Q11: =(H11/0.2) -> 0 | R11: N
A12: 2 | B12: 1SG15EC002 | C12: ABHISHEK K | D12: 14 | E12: 14 | F12: 15 | G12: 0 | H12: =G12 -> 0 | I12: =D12/0.2 -> 70 | J12: Y | K12: =E12/0.2 -> 70 | L12: Y | M12: =((F12)/0.2) -> 75 | N12: Y | O12: =(G12/0.2) -> 0 | P12: =IF(O12<60,"N","Y") -> N | Q12: =(H12/0.2) -> 0 | R12: =IF(Q12<60,"N","Y") -> N
A13: 3 | B13: 1SG15EC003 | C13: ABHISHEK N | D13: 3 | E13: 3 | F13: 13 | G13: 1 | H13: 1 | I13: 15 | J13: N | K13: 15 | L13: N | M13: 65 | N13: Y | O13: 5 | P13: N | Q13: 5 | R13: N
A14: 4 | B14: 1SG15EC004 | C14: ADITYA P THAKKER | D14: 0 | E14: 0 | F14: 14 | G14: 5 | H14: 5 | I14: 0 | J14: N | K14: 0 | L14: N | M14: 70 | N14: Y | O14: 25 | P14: N | Q14: 25 | R14: N
A15: 5 | B15: 1SG15EC006 | C15: AISHWARYA G | D15: 17 | E15: 17 | F15: 18 | G15: 0 | H15: 0 | I15: 85 | J15: Y | K15: 85 | L15: Y | M15: 90 | N15: Y | O15: 0 | P15: N | Q15: 0 | R15: N
A16: 6 | B16: 1SG15EC007 | C16: AKHIL SINGH | D16: 0 | E16: 0 | F16: 10 | G16: 9 | H16: 9 | I16: 0 | J16: N | K16: 0 | L16: N | M16: 50 | N16: N | O16: 45 | P16: N | Q16: 45 | R16: N
A17: 7 | B17: 1SG15EC008 | C17: ANJALI V JAKATI | D17: 16 | E17: 16 | F17: 19 | G17: 0 | H17: 0 | I17: 80 | J17: Y | K17: 80 | L17: Y | M17: 95 | N17: Y | O17: 0 | P17: N | Q17: 0 | R17: N
A18: 8 | B18: 1SG15EC009 | C18: ANJAN O | D18: 8 | E18: 8 | F18: 15 | G18: 14 | H18: 14 | I18: 40 | J18: N | K18: 40 | L18: N | M18: 75 | N18: Y | O18: 70 | P18: Y | Q18: 70 | R18: Y
A19: 9 | B19: 1SG15EC010 | C19: ANKIT PRIYAM | D19: 10 | E19: 10 | F19: 13 | G19: 4 | H19: 4 | I19: 50 | J19: N | K19: 50 | L19: N | M19: 65 | N19: Y | O19: 20 | P19: N | Q19: 20 | R19: N
A20: 10 | B20: 1SG15EC011 | C20: ANKIT SHIVHARE | D20: 12 | E20: 12 | F20: 17 | G20: 15 | H20: 15 | I20: 60 | J20: Y | K20: 60 | L20: Y | M20: 85 | N20: Y | O20: 75 | P20: Y | Q20: 75 | R20: Y
A21: 11 | B21: 1SG15EC012 | C21: ANN NILEENA HENRY C | D21: 19 | E21: 19 | F21: 18 | G21: 0 | H21: 0 | I21: 95 | J21: Y | K21: 95 | L21: Y | M21: 90 | N21: Y | O21: 0 | P21: N | Q21: 0 | R21: N
A22: 12 | B22: 1SG15EC013 | C22: ANU PRIYE | D22: 12 | E22: 12 | F22: 16 | G22: 0 | H22: 0 | I22: 60 | J22: Y | K22: 60 | L22: Y | M22: 80 | N22: Y | O22: 0 | P22: N | Q22: 0 | R22: N
A23: 13 | B23: 1SG15EC014 | C23: APOORVA G A | D23: 15 | E23: 15 | F23: 15 | G23: 0 | H23: 0 | I23: 75 | J23: Y | K23: 75 | L23: Y | M23: 75 | N23: Y | O23: 0 | P23: N | Q23: 0 | R23: N
A24: 14 | B24: 1SG15EC015 | C24: ARCHANA B S | D24: 7 | E24: 7 | F24: 18 | G24: 10 | H24: 10 | I24: 35 | J24: N | K24: 35 | L24: N | M24: 90 | N24: Y | O24: 50 | P24: N | Q24: 50 | R24: N
A25: 15 | B25: 1SG15EC016 | C25: ASHWANI GUPTA | D25: 5 | E25: 5 | F25: 14 | G25: 9 | H25: 9 | I25: 25 | J25: N | K25: 25 | L25: N | M25: 70 | N25: Y | O25: 45 | P25: N | Q25: 45 | R25: N
A26: 16 | B26: 1SG15EC017 | C26: ASHWIN V | D26: 0 | E26: 0 | F26: 6 | G26: 10 | H26: 10 | I26: 0 | J26: N | K26: 0 | L26: N | M26: 30 | N26: N | O26: 50 | P26: N | Q26: 50 | R26: N
A27: 17 | B27: 1SG15EC018 | C27: B NIKHILESHWAR REDDY | D27: 15 | E27: 15 | F27: 17 | G27: 0 | H27: 0 | I27: 75 | J27: Y | K27: 75 | L27: Y | M27: 85 | N27: Y | O27: 0 | P27: N | Q27: 0 | R27: N
A28: 18 | B28: 1SG15EC019 | C28: BHAVYA R | D28: 12 | E28: 12 | F28: 16 | G28: 12 | H28: 12 | I28: 60 | J28: Y | K28: 60 | L28: Y | M28: 80 | N28: Y | O28: 60 | P28: Y | Q28: 60 | R28: Y
A29: 19 | B29: 1SG15EC020 | C29: BHOOMIKA J | D29: 16 | E29: 16 | F29: 14 | G29: 17 | H29: 17 | I29: 80 | J29: Y | K29: 80 | L29: Y | M29: 70 | N29: Y | O29: 85 | P29: Y | Q29: 85 | R29: Y
A30: 20 | B30: 1SG15EC021 | C30: BINDU B | D30: 11 | E30: 11 | F30: 14 | G30: 13 | H30: 13 | I30: 55 | J30: N | K30: 55 | L30: N | M30: 70 | N30: Y | O30: 65 | P30: Y | Q30: 65 | R30: Y
A31: 21 | B31: 1SG15EC022 | C31: BIPUL KUMAR | D31: 7 | E31: 7 | F31: 11 | G31: 14 | H31: 14 | I31: 35 | J31: N | K31: 35 | L31: N | M31: 55 | N31: N | O31: 70 | P31: Y | Q31: 70 | R31: Y
A32: 22 | B32: 1SG15EC023 | C32: C S ADITH KIRAN | D32: 16 | E32: 16 | F32: 19 | G32: 6 | H32: 6 | I32: 80 | J32: Y | K32: 80 | L32: Y | M32: 95 | N32: Y | O32: 30 | P32: N | Q32: 30 | R32: N
A33: 23 | B33: 1SG15EC024 | C33: CHANDANA D L | D33: 18 | E33: 18 | F33: 19 | G33: 0 | H33: 0 | I33: 90 | J33: Y | K33: 90 | L33: Y | M33: 95 | N33: Y | O33: 0 | P33: N | Q33: 0 | R33: N
A34: 24 | B34: 1SG15EC025 | C34: CHANNA BASAVA | D34: 14 | E34: 14 | F34: 16 | G34: 0 | H34: 0 | I34: 70 | J34: Y | K34: 70 | L34: Y | M34: 80 | N34: Y | O34: 0 | P34: N | Q34: 0 | R34: N
A35: 25 | B35: 1SG15EC026 | C35: CHARITHA B M | D35: 12 | E35: =D35 -> 12 | F35: 15 | G35: 18 | H35: 18 | I35: 60 | J35: Y | K35: 60 | L35: Y | M35: 75 | N35: Y | O35: 90 | P35: Y | Q35: 90 | R35: Y
A36: 26 | B36: 1SG15EC027 | C36: CHIRAG S | D36: 5 | E36: =D36 -> 5 | F36: 15 | G36: 17 | H36: 17 | I36: 25 | J36: N | K36: 25 | L36: N | M36: 75 | N36: Y | O36: 85 | P36: Y | Q36: 85 | R36: Y
A37: 27 | B37: 1SG15EC028 | C37: CHITHRA K | D37: 18 | E37: 18 | F37: 20 | G37: 0 | H37: 0 | I37: 90 | J37: Y | K37: 90 | L37: Y | M37: 100 | N37: Y | O37: 0 | P37: N | Q37: 0 | R37: N
A38: 28 | B38: 1SG15EC029 | C38: DARSHAN C | D38: 6 | E38: 6 | F38: 7 | G38: 7 | H38: 7 | I38: 30 | J38: N | K38: 30 | L38: N | M38: 35 | N38: N | O38: 35 | P38: N | Q38: 35 | R38: N
A39: 29 | B39: 1SG15EC030 | C39: DHARMKIRTI KUMAR | D39: 0 | E39: 0 | F39: 9 | G39: 0 | H39: 0 | I39: 0 | J39: N | K39: 0 | L39: N | M39: 45 | N39: N | O39: 0 | P39: N | Q39: 0 | R39: N
A40: 30 | B40: 1SG15EC031 | C40: DILIP V | D40: 4 | E40: 4 | F40: 5 | G40: 6 | H40: 6 | I40: 20 | J40: N | K40: 20 | L40: =IF(K40<60,"N","Y") -> N | M40: 25 | N40: N | O40: 30 | P40: N | Q40: 30 | R40: N
A41: 31 | B41: 1SG15EC032 | C41: DIVYA B | D41: 15 | E41: 15 | F41: 19 | G41: 19 | H41: 19 | I41: 75 | J41: Y | K41: 75 | L41: =IF(K41<60,"N","Y") -> Y | M41: 95 | N41: Y | O41: 95 | P41: Y | Q41: 95 | R41: Y
A42: 32 | B42: 1SG15EC033 | C42: DIVYA R | D42: 15 | E42: 15 | F42: 15 | G42: 20 | H42: 20 | I42: 75 | J42: Y | K42: 75 | L42: Y | M42: 75 | N42: Y | O42: 100 | P42: Y | Q42: 100 | R42: Y
A43: 33 | B43: 1SG15EC034 | C43: GEETHA M | D43: 14 | E43: 14 | F43: 13 | G43: 16 | H43: 16 | I43: 70 | J43: =IF(I43<60,"N","Y") -> Y | K43: 70 | L43: Y | M43: 65 | N43: Y | O43: 80 | P43: Y | Q43: 80 | R43: Y
A44: 34 | B44: 1SG15EC035 | C44: GIRISH S | D44: 16 | E44: 16 | F44: 0 | G44: 16 | H44: 16 | I44: 80 | J44: Y | K44: 80 | L44: Y | M44: 0 | N44: N | O44: 80 | P44: Y | Q44: 80 | R44: Y
A45: 35 | B45: 1SG15EC036 | C45: GOUTHAM M | D45: 9 | E45: 9 | F45: 14 | G45: 13 | H45: 13 | I45: 45 | J45: N | K45: 45 | L45: N | M45: 70 | N45: Y | O45: 65 | P45: Y | Q45: 65 | R45: Y
A46: 36 | B46: 1SG15EC037 | C46: HARISH C | D46: 18 | E46: 18 | F46: 19 | G46: 0 | H46: 0 | I46: 90 | J46: Y | K46: 90 | L46: Y | M46: 95 | N46: Y | O46: 0 | P46: N | Q46: 0 | R46: N
A47: 37 | B47: 1SG15EC038 | C47: HARSHA K B | D47: 15 | E47: 15 | F47: 0 | G47: 20 | H47: 20 | I47: 75 | J47: Y | K47: 75 | L47: Y | M47: 0 | N47: N | O47: 100 | P47: Y | Q47: 100 | R47: Y
A48: 38 | B48: 1SG15EC039 | C48: HARSHITHA L | D48: 14 | E48: 14 | F48: 18 | G48: 0 | H48: 0 | I48: 70 | J48: Y | K48: 70 | L48: Y | M48: 90 | N48: Y | O48: 0 | P48: N | Q48: 0 | R48: N
A49: 39 | C49: HIMANSHU SHEKHAR | D49: 0 | E49: 0 | F49: 8 | G49: 11 | H49: 11 | I49: 0 | J49: N | K49: 0 | L49: N | M49: 40 | N49: N | O49: 55 | P49: N | Q49: 55 | R49: N
A50: 40 | B50: 1SG15EC041 | C50: HIMANSHU TIWARI | D50: 15 | E50: 15 | F50: 17 | G50: 0 | H50: 0 | I50: 75 | J50: Y | K50: 75 | L50: Y | M50: 85 | N50: Y | O50: 0 | P50: N | Q50: 0 | R50: N
A51: 41 | B51: 1SG15EC042 | C51: K AKSHAYA | D51: 12 | E51: 12 | F51: 18 | G51: 0 | H51: 0 | I51: 60 | J51: Y | K51: 60 | L51: Y | M51: 90 | N51: Y | O51: 0 | P51: N | Q51: 0 | R51: N
A52: 42 | B52: 1SG15EC043 | C52: KANAKA LAKSHMI A | D52: 7 | E52: 7 | F52: 10 | G52: 7 | H52: 7 | I52: 35 | J52: N | K52: 35 | L52: N | M52: 50 | N52: N | O52: 35 | P52: N | Q52: 35 | R52: N
A53: 43 | B53: 1SG15EC044 | C53: KANNIKA HEGDE | D53: 13 | E53: 13 | F53: 19 | G53: 17 | H53: 17 | I53: 65 | J53: Y | K53: 65 | L53: Y | M53: 95 | N53: Y | O53: 85 | P53: Y | Q53: 85 | R53: Y
A54: 44 | B54: 1SG15EC045 | C54: KARTHIK K | D54: 17 | E54: 17 | F54: 14 | G54: 14 | H54: 14 | I54: 85 | J54: Y | K54: 85 | L54: Y | M54: 70 | N54: Y | O54: 70 | P54: Y | Q54: 70 | R54: Y
A55: 45 | B55: 1SG15EC046 | C55: KAVYASHREE G S | D55: 16 | E55: 16 | F55: 18 | G55: 17 | H55: 17 | I55: 80 | J55: Y | K55: 80 | L55: Y | M55: 90 | N55: Y | O55: 85 | P55: Y | Q55: 85 | R55: Y
A56: 46 | B56: 1SG15EC047 | C56: KIRAN R | D56: 16 | E56: 16 | F56: 12 | G56: 20 | H56: 20 | I56: 80 | J56: Y | K56: 80 | L56: Y | M56: 60 | N56: Y | O56: 100 | P56: Y | Q56: 100 | R56: Y
A57: 47 | B57: 1SG15EC048 | C57: KOSLENDER SINGH | D57: 0 | E57: 0 | F57: 19 | G57: 18 | H57: 18 | I57: 0 | J57: N | K57: 0 | L57: N | M57: 95 | N57: Y | O57: 90 | P57: Y | Q57: 90 | R57: Y
A58: 48 | B58: 1SG15EC049 | C58: KOTHOJU SRIDHAR CHARY | D58: 4 | E58: 4 | F58: 0 | G58: 6 | H58: 6 | I58: 20 | J58: N | K58: 20 | L58: N | M58: 0 | N58: N | O58: 30 | P58: N | Q58: 30 | R58: N
A59: 48 | B59: 1SG15EC050 | C59: KOUSALYA S | D59: 12 | E59: 12 | F59: 14 | G59: 19 | H59: 19 | I59: 60 | J59: Y | K59: 60 | L59: Y | M59: 70 | N59: Y | O59: 95 | P59: Y | Q59: 95 | R59: Y
A60: 49 | B60: 1SG15EC051 | C60: KOUSHALYA D | D60: 15 | E60: 15 | F60: 18 | G60: 0 | H60: 0 | I60: 75 | J60: Y | K60: 75 | L60: Y | M60: 90 | N60: Y | O60: 0 | P60: N | Q60: 0 | R60: N
A61: 50 | B61: 1SG15EC052 | C61: KUMARI NEHA | D61: 0 | E61: 0 | F61: 9 | G61: 18 | H61: 18 | I61: 0 | J61: N | K61: 0 | L61: N | M61: 45 | N61: N | O61: 90 | P61: Y | Q61: 90 | R61: Y
A62: 51 | B62: 1SG15EC053 | C62: LAVANYA M L | D62: 15 | E62: 15 | F62: 20 | G62: 0 | H62: 0 | I62: 75 | J62: Y | K62: 75 | L62: Y | M62: 100 | N62: Y | O62: 0 | P62: N | Q62: 0 | R62: N
A63: 52 | B63: 1SG15EC054 | C63: LINGARAJU L | D63: 11 | E63: 11 | F63: 19 | G63: 18 | H63: 18 | I63: 55 | J63: N | K63: 55 | L63: N | M63: 95 | N63: Y | O63: 90 | P63: Y | Q63: 90 | R63: Y
A64: 53 | B64: 1SG15EC056 | C64: MANJUNATHA NAIK N | D64: 8 | E64: 8 | F64: 5 | G64: 15 | H64: 15 | I64: 40 | J64: N | K64: 40 | L64: N | M64: 25 | N64: N | O64: 75 | P64: Y | Q64: 75 | R64: Y
A65: 54 | B65: 1SG15EC057 | C65: MANOJ G | D65: 14 | E65: 14 | F65: 12 | G65: 15 | H65: 15 | I65: 70 | J65: Y | K65: 70 | L65: Y | M65: 60 | N65: Y | O65: 75 | P65: Y | Q65: 75 | R65: Y
A66: 55 | B66: 1SG15EC058 | C66: MANU RAJ SINGH | D66: 12 | E66: 12 | F66: 0 | G66: 4 | H66: 4 | I66: 60 | J66: Y | K66: 60 | L66: Y | M66: 0 | N66: N | O66: 20 | P66: N | Q66: 20 | R66: N
A67: 56 | B67: 1SG15EC059 | C67: MEGHANA A S | D67: 19 | E67: 19 | F67: 20 | G67: 19 | H67: 19 | I67: 95 | J67: Y | K67: 95 | L67: Y | M67: 100 | N67: Y | O67: 95 | P67: Y | Q67: 95 | R67: Y
A68: 57 | B68: 1SG15EC060 | C68: MOHAMMED SHAHID | D68: 15 | E68: 15 | F68: 0 | G68: 15 | H68: 15 | I68: 75 | J68: Y | K68: 75 | L68: Y | M68: 0 | N68: N | O68: 75 | P68: Y | Q68: 75 | R68: Y
A69: 58 | B69: 1SG15EC061 | C69: MOHAN VARMA K | D69: 15 | E69: 15 | F69: 20 | G69: 0 | H69: 0 | I69: 75 | J69: Y | K69: 75 | L69: Y | M69: 100 | N69: Y | O69: 0 | P69: N | Q69: 0 | R69: N
A70: 59 | B70: 1SG15EC062 | C70: MOHIT SHARMA | D70: 0 | E70: 0 | F70: 14 | G70: 11 | H70: 11 | I70: 0 | J70: N | K70: 0 | L70: N | M70: 70 | N70: Y | O70: 55 | P70: N | Q70: 55 | R70: N
B71: 1SG15EC063 | C71: MOTILAL | D71: 1 | E71: 1 | F71: 11 | G71: 12 | H71: 12 | I71: 5 | J71: N | K71: 5 | L71: N | O71: 60 | P71: Y | Q71: 60 | R71: Y
A72: 60 | B72: 1SG15EC064 | C72: NAYANA H J | D72: 17 | E72: 17 | F72: 20 | G72: 0 | H72: 0 | I72: 85 | J72: Y | K72: 85 | L72: Y | M72: 100 | N72: Y | O72: 0 | P72: N | Q72: 0 | R72: N
A73: 61 | B73: 1SG15EC065 | C73: NEHA S | D73: 18 | E73: 18 | F73: 19 | G73: 0 | H73: 0 | I73: 90 | J73: Y | K73: 90 | L73: Y | M73: 95 | N73: Y | O73: 0 | P73: N | Q73: 0 | R73: N
A74: 62 | B74: 1SG15EC066 | C74: NIDA SULTHANA N | D74: 20 | E74: 20 | F74: 20 | G74: 0 | H74: 0 | I74: 100 | J74: Y | K74: 100 | L74: Y | M74: 100 | N74: Y | O74: 0 | P74: N | Q74: 0 | R74: N
A75: 63 | B75: 1SG15EC067 | C75: NIKHIL R A | D75: 15 | E75: 15 | F75: 16 | G75: 0 | H75: 0 | I75: 75 | J75: =IF(I75<60,"N","Y") -> Y | K75: 75 | L75: Y | M75: 80 | N75: Y | O75: 0 | P75: N | Q75: 0 | R75: N
B76: 1SG15EC069 | C76: NISHAL KUMAR TIWARI | D76: 10 | E76: =D76 -> 10 | F76: 0 | G76: 13 | H76: 13 | K76: 50 | L76: N | M76: 0 | N76: N | O76: =(G76/0.2) -> 65 | P76: =IF(O76<60,"N","Y") -> Y | Q76: =(H76/0.2) -> 65 | R76: =IF(Q76<60,"N","Y") -> Y
A77: 64 | B77: 1SG15EC069 | C77: NISHANT KUMAR | D77: 16 | E77: 16 | F77: 16 | G77: 0 | H77: 0 | I77: 80 | J77: =IF(I77<60,"N","Y") -> Y | K77: 80 | L77: Y | M77: 80 | N77: =IF(M77<60,"N","Y") -> Y | O77: 0 | P77: N | Q77: 0 | R77: N
A78: 65 | B78: 1SG15EC070 | C78: NIVEDITHA M | D78: 20 | E78: 20 | F78: 20 | G78: 0 | H78: 0 | I78: =D78/0.2 -> 100 | J78: Y | K78: =E78/0.2 -> 100 | L78: Y | M78: =((F78)/0.2) -> 100 | N78: Y | O78: 0 | P78: N | Q78: 0 | R78: N
A79: 66 | B79: 1SG15EC071 | C79: NIVEDITHA S | D79: 14 | E79: 14 | F79: 11 | G79: 0 | H79: =G79 -> 0 | I79: 70 | J79: Y | K79: 70 | L79: Y | M79: 55 | N79: N | O79: 0 | P79: N | Q79: 0 | R79: N
A80: 67 | B80: 1SG15EC072 | C80: PAVITHRA J | D80: 18 | E80: 18 | F80: 20 | G80: 0 | H80: 0 | I80: 90 | J80: Y | K80: 90 | L80: Y | M80: 100 | N80: Y | O80: 0 | P80: N | Q80: 0 | R80: N
A81: 68 | B81: 1SG15EC073 | C81: PAVITRA | D81: 17 | E81: 17 | F81: 19 | G81: 0 | H81: 0 | I81: 85 | J81: Y | K81: 85 | L81: Y | M81: 95 | N81: Y | O81: 0 | P81: N | Q81: 0 | R81: N
A82: 69 | B82: 1SG15EC074 | C82: POOJA R | D82: 10 | E82: 10 | F82: 14 | G82: 0 | H82: 0 | I82: 50 | J82: N | K82: 50 | L82: N | M82: 70 | N82: Y | O82: 0 | P82: N | Q82: 0 | R82: N
A83: 70 | B83: 1SG15EC075 | C83: POOJA S BHAT | D83: 20 | E83: 20 | F83: 20 | G83: 0 | H83: 0 | I83: 100 | J83: Y | K83: 100 | L83: Y | M83: 100 | N83: Y | O83: 0 | P83: N | Q83: 0 | R83: N
A84: 71 | B84: 1SG15EC076 | C84: PRAJWAL K | D84: 11 | E84: 11 | F84: 16 | G84: 0 | H84: 0 | I84: 55 | J84: N | K84: 55 | L84: N | M84: 80 | N84: Y | O84: 0 | P84: N | Q84: 0 | R84: N
A85: 72 | B85: 1SG15EC077 | C85: PRAJWAL S | D85: 7 | E85: 7 | F85: 12 | G85: 13 | H85: 13 | I85: 35 | J85: N | K85: 35 | L85: N | M85: 60 | N85: Y | O85: 65 | P85: Y | Q85: 65 | R85: Y
A86: 73 | B86: 1SG15EC078 | C86: PRASHANT RAJPUT | D86: 11 | E86: 11 | F86: 14 | G86: 0 | H86: 0 | I86: 55 | J86: N | K86: 55 | L86: N | M86: 70 | N86: Y | O86: 0 | P86: N | Q86: 0 | R86: N
A87: 74 | B87: 1SG15EC079 | C87: PRASHANT SRIVASTAVA | D87: 0 | E87: 0 | F87: 15 | G87: 14 | H87: 14 | I87: 0 | J87: N | K87: 0 | L87: N | M87: 75 | N87: Y | O87: 70 | P87: Y | Q87: 70 | R87: Y
A88: 75 | B88: 1SG15EC080 | C88: PRATEEK KUMAR THAKUR | D88: 20 | E88: 20 | F88: 20 | G88: 0 | H88: 0 | I88: 100 | J88: Y | K88: 100 | L88: Y | M88: 100 | N88: Y | O88: 0 | P88: N | Q88: 0 | R88: N
A89: 76 | B89: 1SG15EC081 | C89: PRATHIBHA K | D89: 15 | E89: 15 | F89: 20 | G89: 0 | H89: 0 | I89: 75 | J89: Y | K89: 75 | L89: Y | M89: 100 | N89: Y | O89: 0 | P89: N | Q89: 0 | R89: N
A90: 77 | B90: 1SG15EC082 | C90: PREMA K S | D90: 14 | E90: 14 | F90: 12 | G90: 0 | H90: 0 | I90: 70 | J90: Y | K90: 70 | L90: Y | M90: 60 | N90: Y | O90: 0 | P90: N | Q90: 0 | R90: N
A91: 78 | B91: 1SG15EC083 | C91: PRIYADARSHINI C | D91: 13 | E91: 13 | F91: 17 | G91: 0 | H91: 0 | I91: 65 | J91: Y | K91: 65 | L91: Y | M91: 85 | N91: Y | O91: 0 | P91: N | Q91: 0 | R91: N
A92: 79 | B92: 1SG15EC084 | C92: PRUTHVI R | D92: 12 | E92: 12 | F92: 11 | G92: 17 | H92: 17 | I92: 60 | J92: Y | K92: 60 | L92: Y | M92: 55 | N92: N | O92: 85 | P92: Y | Q92: 85 | R92: Y
A93: 80 | B93: 1SG15EC085 | C93: R REKHA | D93: 20 | E93: 20 | F93: 17 | G93: 0 | H93: 0 | I93: 100 | J93: Y | K93: 100 | L93: Y | M93: 85 | N93: Y | O93: 0 | P93: N | Q93: 0 | R93: N
A94: 81 | B94: 1SG15EC086 | C94: RAJ KUMAR | D94: 18 | E94: 18 | F94: 20 | G94: 0 | H94: 0 | I94: 90 | J94: Y | K94: 90 | L94: Y | M94: 100 | N94: Y | O94: 0 | P94: N | Q94: 0 | R94: N
A95: 82 | B95: 1SG15EC087 | C95: RAKSHA G R | D95: 20 | E95: 20 | F95: 20 | G95: 0 | H95: 0 | I95: 100 | J95: Y | K95: 100 | L95: Y | M95: 100 | N95: Y | O95: 0 | P95: N | Q95: 0 | R95: N
A96: 83 | B96: 1SG15EC088 | C96: RANJAN S | D96: 16 | E96: 16 | F96: 8 | G96: 19 | H96: 19 | I96: 80 | J96: Y | K96: 80 | L96: Y | M96: 40 | N96: N | O96: 95 | P96: Y | Q96: 95 | R96: Y
A97: 84 | B97: 1SG15EC089 | C97: RANJITH GOWDA B | D97: 16 | E97: 16 | F97: 15 | G97: 0 | H97: 0 | I97: 80 | J97: Y | K97: 80 | L97: Y | M97: 75 | N97: Y | O97: 0 | P97: N | Q97: 0 | R97: N
A98: 85 | B98: 1SG15EC090 | C98: RAVI C | D98: 10 | E98: 10 | F98: 13 | G98: 0 | H98: 0 | I98: 50 | J98: N | K98: 50 | L98: N | M98: 65 | N98: Y | O98: 0 | P98: N | Q98: 0 | R98: N
A99: 86 | B99: 1SG15EC091 | C99: SAI SIDDHARTH M | D99: 6 | E99: 6 | F99: 13 | G99: 12 | H99: 12 | I99: 30 | J99: N | K99: 30 | L99: N | M99: 65 | N99: Y | O99: 60 | P99: Y | Q99: 60 | R99: Y
A100: 87 | B100: 1SG15EC092 | C100: SANDHYA V | D100: 8 | E100: 8 | F100: 0 | G100: 17 | H100: 17 | I100: 40 | J100: N | K100: 40 | L100: N | M100: 0 | N100: N | O100: 85 | P100: Y | Q100: 85 | R100: Y
A101: 88 | B101: 1SG15EC093 | C101: SANDHYA Y G | D101: 12 | E101: 12 | F101: 0 | G101: 19 | H101: 19 | I101: 60 | J101: Y | K101: 60 | L101: Y | M101: 0 | N101: N | O101: 95 | P101: Y | Q101: 95 | R101: Y
A102: 89 | B102: 1SG15EC094 | C102: SANJANA A S | D102: 17 | E102: 17 | F102: 17 | G102: 18 | H102: 18 | I102: 85 | J102: Y | K102: 85 | L102: Y | M102: 85 | N102: Y | O102: 90 | P102: Y | Q102: 90 | R102: Y
A103: 90 | B103: 1SG15EC095 | C103: SANJAY KUMAR B N | D103: 11 | E103: =D103 -> 11 | F103: 10 | G103: 12 | H103: 12 | I103: 55 | J103: N | K103: 55 | L103: N | M103: 50 | N103: N | O103: 60 | P103: Y | Q103: 60 | R103: Y
B104: 1SG15EC096 | C104: SANJAY KUMAR L | D104: 8 | E104: =D104 -> 8 | F104: 10 | G104: 13 | H104: =G104 -> 13 | I104: 40 | J104: N | K104: 40 | L104: N | M104: 50 | N104: N | O104: 65 | P104: Y | Q104: 65 | R104: Y
A105: 91 | B105: 1SG15EC098 | C105: SHASHANK H S | D105: 13 | E105: 13 | F105: 10 | G105: 0 | H105: 0 | I105: 65 | J105: Y | K105: 65 | L105: Y | M105: 50 | N105: N | O105: 0 | P105: N | Q105: 0 | R105: N
A106: 92 | B106: 1SG15EC099 | C106: SHASHANK SHEKHAR | D106: 0 | E106: 0 | F106: 14 | G106: 12 | H106: 12 | I106: 0 | J106: N | K106: 0 | L106: N | M106: 70 | N106: Y | O106: 60 | P106: Y | Q106: 60 | R106: Y
A107: 93 | B107: 1SG15EC100 | C107: SHASHIKANT KUMAR | D107: 11 | E107: 11 | F107: 5 | G107: 12 | H107: 12 | I107: 55 | J107: N | K107: 55 | L107: N | M107: 25 | N107: N | O107: 60 | P107: Y | Q107: 60 | R107: Y
A108: 94 | B108: 1SG15EC101 | C108: SHRISH JHA | D108: 14 | E108: 14 | F108: 16 | G108: 0 | H108: 0 | I108: 70 | J108: Y | K108: 70 | L108: =IF(K108<60,"N","Y") -> Y | M108: 80 | N108: Y | O108: 0 | P108: N | Q108: 0 | R108: N
A109: 95 | B109: 1SG15EC102 | C109: SHUBHAM KUMAR | D109: 15 | E109: 15 | F109: 18 | G109: 16 | H109: 16 | I109: 75 | J109: Y | K109: 75 | L109: Y | M109: 90 | N109: Y | O109: 80 | P109: Y | Q109: 80 | R109: Y
A110: 96 | B110: 1SG15EC103 | C110: SHUBHAM KUMAR(D) | D110: 12 | E110: 12 | F110: 7 | G110: 11 | H110: 11 | I110: 60 | J110: Y | K110: 60 | L110: Y | M110: 35 | N110: N | O110: 55 | P110: N | Q110: 55 | R110: N
A111: 97 | B111: 1SG15EC104 | C111: SHUBHAM KUMAR MISHRA | D111: 15 | E111: 15 | F111: 20 | G111: 0 | H111: 0 | I111: 75 | J111: Y | K111: 75 | L111: Y | M111: 100 | N111: Y | O111: 0 | P111: N | Q111: 0 | R111: N
A112: 98 | B112: 1SG15EC105 | C112: SMITHA B BIRADAR | D112: 9 | E112: 9 | F112: 15 | G112: 0 | H112: 0 | I112: 45 | J112: N | K112: 45 | L112: N | M112: 75 | N112: Y | O112: 0 | P112: N | Q112: 0 | R112: N
B113: 1SG15EC106 | C113: SONAM KUMARI | D113: 0 | E113: =D118-D1179 -> 0 | F113: 7 | G113: 2 | H113: 2 | I113: =D113/0.2 -> 0 | J113: N | K113: 0 | L113: N | M113: 35 | N113: N | O113: 10 | P113: N | Q113: 10 | R113: N
A114: 99 | B114: 1SG15EC107 | C114: SUBHAM SHEKHAR PANDEY | D114: 0 | E114: 0 | F114: 16 | G114: 20 | H114: 20 | I114: 0 | J114: N | K114: 0 | L114: N | M114: 80 | N114: Y | O114: 100 | P114: Y | Q114: 100 | R114: Y
A115: 100 | B115: 1SG15EC108 | C115: SUKANYA KRISHNA POOJARI | D115: 16 | E115: 16 | F115: 17 | G115: 0 | H115: 0 | I115: 80 | J115: Y | K115: 80 | L115: Y | M115: 85 | N115: Y | O115: 0 | P115: N | Q115: 0 | R115: N
B116: 1SG15EC109 | C116: SUMAIYA I | D116: 10 | E116: =D116 -> 10 | F116: 7 | G116: 13 | H116: 13 | I116: 50 | J116: N | K116: 50 | L116: N | M116: =((F116)/0.2) -> 35 | N116: =IF(M116<60,"N","Y") -> N | O116: 65 | P116: Y | Q116: 65 | R116: Y
A117: 101 | B117: 1SG15EC110 | C117: SUMALATHA N | D117: 12 | E117: 12 | F117: 11 | G117: 8 | H117: 8 | I117: 60 | J117: Y | K117: 60 | L117: Y | M117: 55 | N117: N | O117: 40 | P117: N | Q117: 40 | R117: N
A118: 102 | B118: 1SG15EC111 | C118: USHA KIRAN S | D118: 0 | E118: 0 | F118: 10 | G118: 13 | H118: 13 | I118: 0 | J118: N | K118: 0 | L118: N | M118: 50 | N118: N | O118: 65 | P118: Y | Q118: 65 | R118: Y
A119: 103 | B119: 1SG15EC112 | C119: VAISHNAVI R SHETTY | D119: 0 | E119: 0 | F119: 9 | G119: 19 | H119: 19 | I119: 0 | J119: N | K119: 0 | L119: N | M119: 45 | N119: N | O119: 95 | P119: Y | Q119: 95 | R119: Y
A120: 104 | B120: 1SG15EC113 | C120: VARSHINI N(D) | D120: 10 | E120: 10 | F120: 17 | G120: 0 | H120: 0 | I120: 50 | J120: N | K120: 50 | L120: N | M120: 85 | N120: Y | O120: 0 | P120: N | Q120: 0 | R120: N
A121: 105 | B121: 1SG15EC114 | C121: VEERESH M | D121: 15 | E121: 15 | F121: 19 | G121: 17 | H121: 17 | I121: 75 | J121: Y | K121: 75 | L121: Y | M121: 95 | N121: Y | O121: 85 | P121: Y | Q121: 85 | R121: Y
A122: 106 | B122: 1SG15EC115 | C122: VIKAS KASHYAP | D122: 20 | E122: 20 | F122: 20 | G122: 0 | H122: 0 | I122: 100 | J122: Y | K122: 100 | L122: Y | M122: 100 | N122: Y | O122: 0 | P122: N | Q122: 0 | R122: N
A123: 107 | B123: 1SG15EC116 | C123: VINAYAKA L S | D123: 10 | E123: 10 | F123: 13 | G123: 0 | H123: 0 | I123: 50 | J123: N | K123: 50 | L123: N | M123: 65 | N123: Y | O123: 0 | P123: N | Q123: 0 | R123: N
B124: 1SG13EC131 | C124: RAMYA SK JADAV | D124: 0 | E124: =D124 -> 0 | F124: 14 | G124: 17 | H124: =G124 -> 17 | I124: 0 | J124: N | K124: 0 | L124: N | M124: 70 | N124: Y | O124: 85 | P124: Y | Q124: 85 | R124: Y
J125: =COUNTIF(J11:J124,"y") -> 68 | L125: =COUNTIF(L11:L124,"y") -> 68 | N125: =COUNTIF(N11:N124,"y") -> 82 | P125: =COUNTIF(P11:P124,"y") -> 47 | R125: =COUNTIF(R11:R124,"y") -> 47
I128: IA MARKS ATTAINMENT | K128: 68 | L128: 68 | M128: 82 | N128: 47 | O128: 47

Sheet C-Sec (hidden)
B1: Acharya Institute of Technology
B2: Department of Computer Science and Engineering
B3: VI Semester C Section Test marks for Even Sem 2013-14
A4: Sl. No. | B4: Name of the student | C4: USN | D4: I INTERNALS | I4: II INTERNALS | Q4: III INTERNALS
I5: PART A | M5: PART B | Q5: PART A | U5: PART B
D6: 1 | E6: 2 | F6: 3 | G6: 4 | H6: 5 | I6: 1 | J6: 2 | K6: 3 | L6: 4 | M6: 5 | N6: 6 | O6: 7 | P6: 8 | Q6: 1 | R6: 2 | S6: 3 | T6: 4 | U6: 5 | V6: 6 | W6: 7 | X6: 8
D7: CO 1 | E7: CO 2 | F7: CO 3 | G7: CO 3 | H7: CO 3 | I7: CO 3 | J7: CO 3 | K7: CO 3 | L7: CO 3 | M7: CO 1 | N7: CO 4 | O7: CO 4 | P7: CO 4 | Q7: CO 4 | R7: CO 4 | S7: CO 4 | T7: CO 4 | U7: CO 4 | V7: CO 4 | W7: CO 5 | X7: CO 5
A8: 1 | B8: SRINIDHI P C | C8: 1AY11CS113 | D8: 10 | E8: 10 | F8: 7 | G8: 10 | H8: 10 | I8: 10 | J8: 10 | K8: 10 | N8: 10 | O8: 9 | Q8: 10 | T8: 9 | U8: 10 | V8: 9 | X8: 10
A9: 2 | B9: SHRUTHIKA C RAMPURE | C9: 1AY11CS114 | D9: 10 | E9: 7 | F9: 9 | G9: 9 | H9: 4 | I9: 9 | J9: 9 | K9: 9 | L9: 9 | N9: 9 | O9: 9 | P9: 10
A10: 3 | B10: SNEHA KUMARI | C10: 1AY11CS115 | D10: 10 | E10: 8 | F10: 9 | G10: 10 | H10: 9 | I10: 10 | K10: 9 | L10: 10 | N10: 9 | O10: 10 | P10: 9 | Q10: 10 | R10: 10 | S10: 10 | T10: 10 | U10: 4 | X10: 10
A11: 4 | B11: SOMEN GORAIN | C11: 1AY11CS116 | E11: 10 | F11: 9 | G11: 9 | H11: 7 | I11: 10 | K11: 10 | M11: 10 | O11: 10 | P11: 10 | Q11: 8 | S11: 10 | T11: 10 | V11: 10 | X11: 10
A12: 5 | B12: SOUVIK KUNDU | C12: 1AY11CS117 | D12: 10 | E12: 10 | F12: 9 | G12: 5 | H12: 7 | K12: 10 | L12: 7 | M12: 10 | N12: 10 | O12: 10 | R12: 10 | S12: 10 | T12: 10 | U12: 6 | V12: 10 | W12: 6
A13: 6 | B13: SOWMYA NAGARAJU | C13: 1AY11CS118 | D13: 3 | E13: 8 | F13: 10 | G13: 8 | H13: 5 | K13: 8 | L13: 10 | M13: 4 | P13: 8 | Q13: 5 | S13: 10 | T13: 10 | U13: 6 | V13: 10 | X13: 10
A14: 7 | B14: SRISTI KUMARI | C14: 1AY11CS120 | D14: 10 | E14: 3 | F14: 7 | G14: 5 | K14: 7 | L14: 7 | M14: 10 | O14: 9 | P14: 9
A15: 8 | B15: SUBAS THAPA | C15: 1AY11CS121 | D15: 7 | E15: 3 | F15: 10 | G15: 4 | H15: 6 | I15: 9 | K15: 9 | N15: 10 | O15: 10 | P15: 8 | Q15: 10 | S15: 10 | T15: 10 | V15: 10 | X15: 9
A16: 9 | B16: SUKANYA BOSE | C16: 1AY11CS122 | D16: 7 | E16: 5 | F16: 8 | I16: 3 | J16: 9 | K16: 9 | L16: 5 | M16: 6 | N16: 4 | O16: 0 | P16: 4 | Q16: 6 | S16: 9 | T16: 4 | V16: 6
A17: 10 | B17: SUMIT KUMAR | C17: 1AY11CS123 | D17: 10 | E17: 3 | F17: 8 | G17: 5 | M17: 8 | N17: 4 | O17: 10 | P17: 5 | Q17: 10 | T17: 10 | U17: 4 | W17: 10 | X17: 10
A18: 11 | B18: SUPRIYA | C18: 1AY11CS124 | D18: 7 | E18: 8 | F18: 9 | G18: 9 | H18: 7 | J18: 8 | K18: 9 | N18: 10 | O18: 6 | P18: 10 | Q18: 8 | S18: 10 | T18: 10 | U18: 8 | V18: 8 | X18: 10
A19: 12 | B19: SURENDRA D | C19: 1AY11CS125 | D19: 10 | F19: 9 | G19: 9 | H19: 7 | I19: 10 | K19: 10 | L19: 8 | M19: 10 | O19: 10 | P19: 6 | Q19: 10 | R19: 6 | S19: 10 | T19: 6 | U19: 4 | X19: 10
A20: 13 | B20: SWATI .M .S | C20: 1AY11CS127 | D20: 10 | E20: 3 | F20: 10 | G20: 4 | H20: 9 | I20: 7 | K20: 9 | L20: 5 | N20: 8 | O20: 9 | P20: 9 | Q20: 8 | R20: 8 | S20: 10 | T20: 10 | U20: 8 | V20: 8 | X20: 10
A21: 14 | B21: TAJ UNNISA | C21: 1AY11CS128 | D21: 10 | E21: 8 | F21: 9 | G21: 10 | H21: 10 | I21: 8 | J21: 9 | L21: 9 | M21: 10 | N21: 9 | O21: 10
A22: 15 | B22: TANUSHREE .Y | C22: 1AY11CS129 | D22: 10 | E22: 4 | F22: 9 | G22: 10 | H22: 6 | I22: 10 | K22: 10 | L22: 4 | N22: 8 | O22: 10 | P22: 10 | R22: 10 | S22: 10 | U22: 10 | V22: 10 | X22: 10
A23: 16 | B23: UMESH KUMAR | C23: 1AY11CS131 | I23: 7 | J23: 9 | L23: 9 | M23: 7 | N23: 4 | O23: 6 | Q23: 6 | S23: 10 | U23: 8 | V23: 10 | X23: 10
A24: 17 | B24: V PRADEEP | C24: 1AY11CS133 | D24: 2 | E24: 10 | F24: 9 | G24: 9 | H24: 10 | I24: 9 | K24: 7 | N24: 10 | O24: 4 | P24: 10
A25: 18 | B25: VISHAL KUMAR | C25: 1AY11CS135 | D25: 10 | E25: 10 | F25: 10 | G25: 10 | H25: 10 | J25: 8 | K25: 5 | M25: 10 | N25: 2 | O25: 10 | P25: 8
A26: 19 | B26: VISHNU .N | C26: 1AY11CS136 | D26: 10 | E26: 9 | F26: 9 | G26: 10 | H26: 7 | I26: 10 | J26: 10 | M26: 10 | N26: 10 | O26: 10
A27: 20 | B27: YOGESH.N | C27: 1AY11CS137 | D27: 10 | E27: 10 | F27: 9 | G27: 10 | H27: 9 | I27: 10 | J27: 10 | K27: 9 | M27: 10 | N27: 10 | O27: 10
A28: 21 | B28: SNEHA KULHALLI | C28: 1AY11CS140 | D28: 10 | E28: 3 | F28: 7 | G28: 7 | H28: 5 | I28: 5 | J28: 7 | K28: 5 | L28: 5 | N28: 6 | O28: 9 | Q28: 10 | S28: 10 | U28: 8 | V28: 6 | X28: 10
A29: 22 | B29: AKSHITHA C | C29: 1AY12CS400 | D29: 7 | F29: 9 | G29: 7 | H29: 5 | I29: 8 | K29: 8 | N29: 4 | O29: 4 | P29: 4 | Q29: 8 | S29: 8 | T29: 8 | V29: 8
A30: 23 | B30: B B VIKAS | C30: 1AY12CS401 | J30: 8 | K30: 7 | M30: 10 | N30: 4 | O30: 10 | Q30: 5 | R30: 2 | S30: 10 | T30: 5 | U30: 2 | V30: 8 | X30: 10
A31: 24 | B31: BALAJI P | C31: 1AY12CS402 | J31: 7 | N31: 6 | O31: 10 | P31: 5 | Q31: 8 | R31: 4 | S31: 10 | V31: 8 | W31: 10
A32: 25 | B32: BASANAGOUDA | C32: 1AY12CS403 | I32: 9 | J32: 7 | N32: 4 | O32: 9 | P32: 4 | R32: 8 | S32: 10 | T32: 8 | U32: 10 | V32: 8 | X32: 10
A33: 26 | B33: BASAVARAJ S | C33: 1AY12CS404 | D33: 9 | E33: 9 | I33: 8 | K33: 9 | N33: 4 | P33: 4 | Q33: 5 | S33: 10 | T33: 10 | U33: 4 | V33: 9 | X33: 10
A34: 27 | B34: DIVYA KALA M | C34: 1AY12CS405 | D34: 10 | E34: 8 | F34: 9 | G34: 9 | H34: 9 | I34: 9 | J34: 8 | M34: 10 | N34: 4 | O34: 9 | P34: 4 | Q34: 8 | R34: 8 | S34: 10 | U34: 8 | V34: 8
A35: 28 | B35: DIVYA L | C35: 1AY12CS406 | D35: 10 | E35: 2 | F35: 7 | I35: 7 | J35: 5 | N35: 4 | O35: 4 | P35: 5 | Q35: 10 | S35: 4 | T35: 10 | U35: 3 | V35: 6 | W35: 4
A36: 29 | B36: GOPAL RAJ J T | C36: 1AY12CS407 | D36: 9 | F36: 9 | G36: 9 | H36: 7 | J36: 5 | L36: 5 | N36: 4 | O36: 6 | P36: 4 | Q36: 4 | S36: 6 | U36: 8 | V36: 8 | W36: 8
A37: 30 | B37: GURURAJ M S | C37: 1AY12CS408 | D37: 9 | E37: 8 | F37: 9 | G37: 7 | H37: 7 | K37: 5 | L37: 8 | N37: 10 | O37: 7 | Q37: 8 | R37: 8 | S37: 10 | T37: 5 | U37: 5 | X37: 10
A38: 31 | B38: JHANHAVI V | C38: 1AY12CS410 | D38: 8 | E38: 5 | F38: 9 | G38: 5 | H38: 6 | I38: 9 | L38: 8 | M38: 10 | N38: 9 | O38: 9 | P38: 8 | Q38: 8 | S38: 8 | T38: 10 | U38: 8 | X38: 8
A39: 32 | B39: LOHITH R R | C39: 1AY12CS411 | F39: 6 | G39: 7 | H39: 6 | J39: 9 | K39: 10 | N39: 10 | O39: 10 | P39: 10 | Q39: 10 | R39: 8 | S39: 10 | V39: 8 | X39: 6
A40: 33 | B40: MALLIKARJUN | C40: 1AY12CS412 | I40: 4 | J40: 6 | M40: 2 | N40: 4 | O40: 5 | P40: 4 | Q40: 8 | R40: 8 | S40: 10 | T40: 3 | V40: 8
A41: 34 | B41: MANJU S | C41: 1AY12CS414 | F41: 10 | G41: 10 | H41: 3 | K41: 7 | L41: 9 | N41: 9 | O41: 9 | P41: 9 | Q41: 8 | R41: 8 | S41: 10 | T41: 10 | V41: 8
A42: 35 | B42: MEGHANA K K | C42: 1AY12CS415 | D42: 9 | F42: 7 | Q42: 5 | R42: 5 | S42: 10 | T42: 8 | V42: 8 | W42: 5 | X42: 8
A43: 36 | B43: MONICA SM | C43: 1AY12CS416 | D43: 10 | E43: 9 | F43: 5 | G43: 5 | H43: 5 | I43: 4 | L43: 4 | M43: 10 | N43: 4 | P43: 4 | Q43: 8 | R43: 10 | S43: 10 | V43: 8 | X43: 10
A44: 37 | B44: NAVEEN KUMAR K S | C44: 1AY12CS417 | K44: 5 | L44: 5 | N44: 4 | P44: 4 | Q44: 10 | S44: 10 | U44: 6 | V44: 10 | X44: 10
A45: 38 | B45: NAYANA R R | C45: 1AY12CS418 | D45: 10 | E45: 9 | G45: 6 | H45: 5 | Q45: 6 | R45: 6 | U45: 3 | V45: 4 | X45: 10
A46: 39 | B46: PAVITHRA HJ | C46: 1AY12CS419 | I46: 8 | J46: 8 | M46: 10 | N46: 4 | O46: 4 | P46: 4 | Q46: 5 | S46: 8 | T46: 8 | U46: 4 | W46: 4 | X46: 10
A47: 40 | B47: PRASHANTH V | C47: 1AY12CS420 | D47: 8 | E47: 2 | F47: 9 | G47: 9 | H47: 1 | I47: 8 | K47: 10 | N47: 9 | O47: 10 | P47: 9
A48: 41 | B48: PRAVEEN KUMAR B | C48: 1AY12CS421 | D48: 9 | E48: 6 | F48: 6 | G48: 9 | H48: 8 | I48: 8 | J48: 9 | K48: 9 | N48: 4 | P48: 4 | Q48: 5 | S48: 8 | T48: 8 | U48: 8 | X48: 8
A49: 42 | B49: PUTTARAJU B K | C49: 1AY12CS422 | D49: 8 | F49: 5 | G49: 3 | J49: 4 | K49: 4 | M49: 9 | O49: 10 | P49: 3 | S49: 10 | T49: 10 | V49: 4 | X49: 10
A50: 43 | B50: RADHAKRISHNA G | C50: 1AY12CS423 | D50: 6 | F50: 5 | G50: 5 | H50: 5 | I50: 8 | K50: 8 | N50: 4 | O50: 4 | P50: 10 | Q50: 6 | S50: 6 | T50: 6 | U50: 10 | V50: 10 | X50: 10
A51: 44 | B51: SANTHOSH KUMAR G P | C51: 1AY12CS425 | D51: 9 | E51: 7 | F51: 9 | G51: 9 | H51: 7 | I51: 7 | J51: 7 | K51: 7 | M51: 10 | N51: 4 | O51: 10 | P51: 4
A52: 45 | B52: SHREYAS P | C52: 1AY12CS426 | D52: 10 | E52: 5 | F52: 6 | G52: 5 | H52: 5 | I52: 4 | K52: 4 | M52: 9 | N52: 2 | O52: 8
A53: 46 | B53: SHRIDHAR REDDY | C53: 1AY12CS427 | K53: 3 | N53: 4 | P53: 7 | Q53: 6 | S53: 9 | T53: 10 | U53: 10 | V53: 9 | X53: 8
A54: 47 | B54: VIDYA G | C54: 1AY12CS430 | D54: 10 | E54: 9 | F54: 9 | G54: 8 | I54: 9 | J54: 7 | M54: 10 | N54: 4 | O54: 8 | S54: 10 | T54: 10 | V54: 8 | X54: 6
B56: No of students between 9-10 | D56: =COUNTIF(D6:D54,"=9")+COUNTIF(D6:D54,"=10") -> 26 | E56: =COUNTIF(E6:E54,"=9")+COUNTIF(E6:E54,"=10") -> 11 | F56: 24 | G56: 18 | H56: 8 | I56: 14 | J56: 9 | K56: 16 | L56: 6 | M56: 17 | N56: 15 | O56: 26 | P56: 12 | Q56: 9 | R56: 4 | S56: 27 | T56: 16 | U56: 5 | V56: 11 | W56: 2 | X56: 22
B57: No of students between 7-8 | D57: =COUNTIF(D6:D54,"=7")+COUNTIF(D6:D54,"=8") -> 7 | E57: =COUNTIF(E6:E54,"=7")+COUNTIF(E6:E54,"=8") -> 8 | F57: 7 | G57: 6 | H57: 9 | I57: 11 | J57: 10 | K57: 8 | L57: 5 | M57: 2 | N57: 2 | O57: 4 | P57: 6 | Q57: 11 | R57: 7 | S57: 4 | T57: 5 | U57: 8 | V57: 14 | W57: 2 | X57: 5
B58: No of students between 5-6 | D58: =COUNTIF(D6:D54,"=5")+COUNTIF(D6:D54,"=6") -> 1 | E58: =COUNTIF(E6:E54,"=5")+COUNTIF(E6:E54,"=6") -> 4 | F58: 6 | G58: 8 | H58: 12 | I58: 1 | J58: 3 | K58: 4 | L58: 5 | M58: 2 | N58: 3 | O58: 4 | P58: 4 | Q58: 11 | R58: 3 | S58: 2 | T58: 4 | U58: 5 | V58: 4 | W58: 2 | X58: 2
B59: No of students between 3-4 | D59: =COUNTIF(D6:D54,"=3")+COUNTIF(D6:D54,"=4") -> 1 | E59: =COUNTIF(E6:E54,"=3")+COUNTIF(E6:E54,"=4") -> 6 | F59: 1 | G59: 4 | H59: 2 | I59: 4 | J59: 1 | K59: 4 | L59: 3 | M59: 1 | N59: 19 | O59: 5 | P59: 13 | Q59: 1 | R59: 1 | S59: 2 | T59: 3 | U59: 7 | V59: 2 | W59: 2 | X59: 0
B60: No of students between 1-2 | D60: =COUNTIF(D6:D54,"=1")+COUNTIF(D6:D54,"=2") -> 2 | E60: =COUNTIF(E6:E54,"=1")+COUNTIF(E6:E54,"=2") -> 3 | F60: 0 | G60: 0 | H60: 1 | I60: 1 | J60: 1 | K60: 0 | L60: 0 | M60: 1 | N60: 2 | O60: 0 | P60: 0 | Q60: 1 | R60: 2 | S60: 0 | T60: 0 | U60: 1 | V60: 0 | W60: 0 | X60: 0
B61: No of students scored 0 | D61: =COUNTIF(D6:D54,"=0") -> 0 | E61: =COUNTIF(E6:E54,"=0") -> 0 | F61: 0 | G61: 0 | H61: 0 | I61: 0 | J61: 0 | K61: 0 | L61: 0 | M61: 0 | N61: 0 | O61: 1 | P61: 0 | Q61: 0 | R61: 0 | S61: 0 | T61: 0 | U61: 0 | V61: 0 | W61: 0 | X61: 0
B62: Absentees | D62: =COUNTBLANK(D6:D54) -> 11 | E62: =COUNTBLANK(E6:E54) -> 16 | F62: 10 | G62: 12 | H62: 16 | I62: 17 | J62: 24 | K62: 16 | L62: 29 | M62: 25 | N62: 7 | O62: 8 | P62: 13 | Q62: 15 | R62: 31 | S62: 13 | T62: 20 | U62: 22 | V62: 17 | W62: 40 | X62: 19
B64: Attainment | D64: =((0.35*D56)+(0.3*D57)+(0.2*D58)+(0.1*D59)+(0.05*D60)+(0*D61))/(0.35*(D56+D57+D58+D59+D60+D61))*100 -> 89.58 | E64: =((0.35*E56)+(0.3*E57)+(0.2*E58)+(0.1*E59)+(0.05*E60)+(0*E61))/(0.35*(E56+E57+E58+E59+E60+E61))*100 -> 69.64 | F64: 88.72 | G64: 80.16 | H64: 72.77 | I64: 81.57 | J64: 82.14 | K64: 82.14 | L64: 73.68 | M64: 88.20 | N64: 58.89 | O64: 82.86 | P64: 66.12 | Q64: 76.19 | R64: 72.27 | S64: 91.84 | T64: 83.67 | U64: 64.84 | V64: 83.41 | W64: 67.86 | X64: 94.58

Sheet Sheet1 (hidden)
A1: Course outcomes-Program outcomes mapping & Attainment table:
A2: COs | B2: COs attained in % | C2: Program outcomes | V2: Total | W2: Attainment level of Program Outcomes in % (Average) | X2: Achievement
C3: a | E3: b | G3: c | I3: d | K3: e | M3: f | O3: g | Q3: h | R3: i | S3: j | T3: k | U3: l
C4: leve | D4: Attainment | E4: leve | F4: Attainment | G4: leve | H4: Attainment | I4: leve | J4: Attainment | K4: leve | L4: Attainment | M4: leve | N4: Attainment | O4: leve | P4: Attainment | X4: (Threshold Goal:70%)
A5: CO1 | B5: 85 | C5: 1 | D5: =(C5/C9)*B5 -> 10.625 | G5: 10.625
A6: CO2 | B6: 90 | C6: 2 | D6: =(C6/C9)*B6 -> 22.5 | G6: 22.5
A7: CO3 | B7: 83 | C7: 3 | D7: =(C7/C9)*B7 -> 31.125 | G7: 31.125
A8: CO4 | B8: 75 | C8: 2 | D8: =(C8/C9)*B8 -> 18.75 | G8: 18.75
A9: Total | C9: 8
A10: Note: Mapping in terms of Slight (1), Moderate(2), Good(3) and Excellent(4) levels and COs need not map all POS

Sheet Sheet2 (hidden)
A5: COs | B5: Avg. COs attained in % | C5: Program outcomes | O5: Attainment level of Program Outcomes in % (Average) | P5: Achievement
C6: a | D6: b | E6: c | F6: d | G6: e | H6: f | I6: g | J6: h | K6: i | L6: j | M6: k | N6: l | P6: (Threshold Goal:70%)
A7: CO1 | B7: 85 | C7: 4
A8: CO2 | B8: 90
A9: CO3 | B9: 83
A10: CO4 | B10: 75
A11: Total
A17: Subject Code : | B17: 10ME64 | C17: Title: Finite Element Methods | J17: Faculty Name: | N17: Manjunatha B.
A18: List of Course outcomes | C18: Program Outcomes | Q18: Total
C19: a | D19: b | E19: c | F19: d | G19: e | H19: f | I19: g | K19: h | L19: I | M19: J | O19: k | P19: l
A20: CO-1 | C20: 4 | D20: 2 | E20: 1 | F20: - | G20: - | H20: - | I20: - | K20: - | L20: 1 | M20: - | O20: 2 | P20: - | Q20: 9
A21: CO-2 | C21: 2 | D21: 4 | E21: 2 | F21: 2 | G21: 2 | H21: - | I21: - | K21: - | L21: - | M21: - | O21: - | P21: 3 | Q21: 15
A22: CO-3 | C22: 1 | D22: 4 | E22: 3 | F22: 2 | G22: 4 | H22: - | I22: - | K22: - | L22: - | M22: - | O22: - | P22: 3 | Q22: 17
A23: CO-4 | C23: 2 | D23: 4 | E23: 2 | F23: - | G23: - | H23: - | I23: - | K23: - | L23: - | M23: - | O23: - | P23: - | Q23: 8
A24: CO-5 | C24: - | D24: - | E24: - | F24: 2 | G24: 1 | H24: - | I24: - | K24: - | L24: 2 | M24: - | O24: 2 | P24: - | Q24: 7
A25: Total | C25: 9 | D25: 14 | E25: 7 | F25: 6 | G25: 7 | H25: - | I25: - | K25: - | L25: 3 | M25: - | O25: 4 | P25: 6 | Q25: 50
B68: a | C68: b | D68: c | E68: d | F68: e | G68: f | H68: g | I68: h | J68: i | K68: j | L68: k | M68: l
A69: co1 | B69: 4 | C69: 2 | D69: 1 | E69: - | F69: - | G69: - | H69: - | I69: - | J69: 1 | K69: - | L69: 2 | M69: - | N69: 10
A70: co2 | B70: 2 | C70: 4 | D70: 2 | E70: 2 | F70: 2 | G70: - | H70: - | I70: - | J70: - | K70: - | L70: - | M70: 3 | N70: 15
A71: co3 | B71: 1 | C71: 4 | D71: 3 | E71: 2 | F71: 4 | G71: - | H71: - | I71: - | J71: - | K71: - | L71: - | M71: 3 | N71: 17
A72: co4 | B72: 2 | C72: 4 | D72: 2 | E72: - | F72: - | G72: - | H72: - | I72: - | J72: - | K72: - | L72: - | M72: - | N72: 8
A73: co5 | B73: - | C73: - | D73: - | E73: 2 | F73: 1 | G73: - | H73: - | I73: - | J73: 2 | K73: - | L73: 2 | M73: - | N73: 7
B74: 9 | C74: 14 | D74: 8 | E74: 6 | F74: 7 | G74: - | H74: - | I74: - | J74: 3 | K74: - | L74: 4 | M74: 6 | N74: 57
B76: 85 | C76: 73 | D76: 1 | E76: - | F76: - | G76: - | H76: - | I76: - | J76: 1 | K76: - | L76: 2 | M76: - | N76: 10
B77: 85 | C77: 70 | D77: 2 | E77: 2 | F77: 2 | G77: - | H77: - | I77: - | J77: - | K77: - | L77: - | M77: 3 | N77: 15
B78: 85 | C78: 84 | D78: 3 | E78: 2 | F78: 4 | G78: - | H78: - | I78: - | J78: - | K78: - | L78: - | M78: 3 | N78: 17
B79: 85 | C79: 84 | D79: 2 | E79: - | F79: - | G79: - | H79: - | I79: - | J79: - | K79: - | L79: - | M79: - | N79: 8
B80: - | C80: - | D80: - | E80: 2 | F80: 1 | G80: - | H80: - | I80: - | J80: 2 | K80: - | L80: 2 | M80: - | N80: 7
B81: 9 | C81: 14 | D81: 8 | E81: 6 | F81: 7 | G81: - | H81: - | I81: - | J81: 3 | K81: - | L81: 4 | M81: 6 | N81: 57
B84: =IF(B69="-",0,B69)/B$74 -> 0.44 | C84: =IF(C69="-",0,C69)/C$74 -> 0.14 | D84: 0.13 | E84: 0.00 | F84: 0.00 | J84: 0.33 | L84: 0.50 | M84: 0.00 | N84: 10
B85: =IF(B70="-",0,B70)/B$74 -> 0.22 | C85: 0.29 | D85: 0.25 | E85: 0.33 | F85: 0.29 | J85: 0.00 | L85: 0.00 | M85: 0.50 | N85: 15
B86: 0.11 | C86: 0.29 | D86: 0.38 | E86: 0.33 | F86: 0.57 | J86: 0.00 | L86: 0.00 | M86: 0.50 | N86: 17
B87: 0.22 | C87: 0.29 | D87: 0.25 | E87: 0.00 | F87: 0.00 | J87: 0.00 | L87: 0.00 | M87: 0.00 | N87: 8
B88: 0.00 | C88: 0.00 | D88: 0.00 | E88: 0.33 | F88: 0.14 | J88: 0.67 | L88: 0.50 | M88: 0.00 | N88: 7
B89: =B74/B$74 -> 1.00 | C89: 1.00 | D89: 1.00 | E89: 1.00 | F89: 1.00 | J89: 1.00 | L89: 1.00 | M89: 1.00 | N89: 57
B92: =B84*B76 -> 37.8 | C92: =C84*C76 -> 10.4 | D92: 0.1 | J92: 0.3 | L92: 1.0 | N92: 10.0
B93: =B85*B77 -> 18.9 | C93: =C85*C77 -> 20.0 | D93: 0.5 | E93: 0.7 | F93: 0.6 | M93: 1.5 | N93: 15.0
B94: =B86*B78 -> 9.4 | C94: =C86*C78 -> 24.0 | D94: 1.1 | E94: 0.7 | F94: 2.3 | M94: 1.5 | N94: 17.0
B95: =B87*B79 -> 18.9 | C95: =C87*C79 -> 24.0 | D95: 0.5 | N95: 8.0
B96: =B88*IF(B80="-",0,B88) -> 0.0 | C96: =C88*IF(C80="-",0,C88) -> 0.0 | D96: 0.0 | E96: 0.1 | F96: 0.0 | J96: 0.4 | L96: 0.3 | M96: 0.0 | N96: 7.0
B97: =SUM(B92:B96) -> 85.0 | C97: =SUM(C92:C96) -> 78.4 | D97: 2.3 | N97: 57.0

Sheet Assignment
B1: Sapthagiri College of Engineering
B2: Department of Electronics and Communication Engineering
C3: Basic Electronics (15ELN15) G & H sections
B4: II Semester Test marks for EVEN Sem 2015-16
A5: Sl. No. | B5: USN | C5: NAME | D5: Assignment | I5: Course Objectives
D8: CO 1 | E8: CO2 | F8: CO3 | G8: CO4 | H8: C | I8: CO1 | K8: CO2 | M8: CO3 | O8: CO 4 | Q8: C0 5
C9: MAX MARKS | D9: 5 | E9: 5 | F9: 5 | G9: 5 | H9: 5
I10: % | K10: % | M10: % | O10: % | Q10: %
A11: 1 | B11: 1SG15EC001 | C11: ABHIJITH N | D11: 5 | E11: 5 | F11: 5 | G11: 5 | H11: 5 | I11: =D11/0.05 -> 100 | J11: =IF(I11<60,"N","Y") -> Y | K11: =F11/0.05 -> 100 | L11: =IF(K11<60,"N","Y") -> Y | M11: =H11/0.05 -> 100 | N11: =IF(M11<60,"N","Y") -> Y | O11: =(G11/0.05) -> 100 | P11: =IF(O11<60,"N","Y") -> Y | Q11: =(H11/0.05) -> 100 | R11: Y
A12: 2 | B12: 1SG15EC002 | C12: ABHISHEK K | D12: 5 | E12: 5 | F12: 5 | G12: 5 | H12: 5 | I12: =D12/0.05 -> 100 | J12: =IF(I12<60,"N","Y") -> Y | K12: =F12/0.05 -> 100 | L12: =IF(K12<60,"N","Y") -> Y | M12: =H12/0.05 -> 100 | N12: =IF(M12<60,"N","Y") -> Y | O12: =(G12/0.05) -> 100 | P12: =IF(O12<60,"N","Y") -> Y | Q12: =(H12/0.05) -> 100 | R12: =IF(Q12<60,"N","Y") -> Y
A13: 3 | B13: 1SG15EC003 | C13: ABHISHEK N | D13: 5 | E13: 5 | F13: 5 | G13: 5 | H13: 5 | I13: 100 | J13: Y | K13: 100 | L13: Y | M13: 100 | N13: Y | O13: 100 | P13: Y | Q13: 100 | R13: Y
A14: 4 | B14: 1SG15EC004 | C14: ADITYA P THAKKER | D14: 5 | E14: 5 | F14: 5 | G14: 5 | H14: 5 | I14: 100 | J14: Y | K14: 100 | L14: Y | M14: 100 | N14: Y | O14: 100 | P14: Y | Q14: 100 | R14: Y
A15: 5 | B15: 1SG15EC006 | C15: AISHWARYA G | D15: 5 | E15: 5 | F15: 5 | G15: 5 | H15: 5 | I15: 100 | J15: Y | K15: 100 | L15: Y | M15: 100 | N15: Y | O15: 100 | P15: Y | Q15: 100 | R15: Y
A16: 6 | B16: 1SG15EC007 | C16: AKHIL SINGH | D16: 5 | E16: 5 | F16: 5 | G16: 5 | H16: 5 | I16: 100 | J16: Y | K16: 100 | L16: Y | M16: 100 | N16: Y | O16: 100 | P16: Y | Q16: 100 | R16: Y
A17: 7 | B17: 1SG15EC008 | C17: ANJALI V JAKATI | D17: 5 | E17: 5 | F17: 5 | G17: 5 | H17: 5 | I17: 100 | J17: Y | K17: 100 | L17: Y | M17: 100 | N17: Y | O17: 100 | P17: Y | Q17: 100 | R17: Y
A18: 8 | B18: 1SG15EC009 | C18: ANJAN O | D18: 5 | E18: 5 | F18: 5 | G18: 5 | H18: 5 | I18: 100 | J18: Y | K18: 100 | L18: Y | M18: 100 | N18: Y | O18: 100 | P18: Y | Q18: 100 | R18: Y
A19: 9 | B19: 1SG15EC010 | C19: ANKIT PRIYAM | D19: 5 | E19: 5 | F19: 5 | G19: 5 | H19: 5 | I19: 100 | J19: Y | K19: 100 | L19: Y | M19: 100 | N19: Y | O19: 100 | P19: Y | Q19: 100 | R19: Y
A20: 10 | B20: 1SG15EC011 | C20: ANKIT SHIVHARE | D20: 5 | E20: 5 | F20: 5 | G20: 5 | H20: 5 | I20: 100 | J20: Y | K20: 100 | L20: Y | M20: 100 | N20: Y | O20: 100 | P20: Y | Q20: 100 | R20: Y
A21: 11 | B21: 1SG15EC012 | C21: ANN NILEENA HENRY C | D21: 5 | E21: 5 | F21: 5 | G21: 5 | H21: 5 | I21: 100 | J21: Y | K21: 100 | L21: Y | M21: 100 | N21: Y | O21: 100 | P21: Y | Q21: 100 | R21: Y
A22: 12 | B22: 1SG15EC013 | C22: ANU PRIYE | D22: 5 | E22: 5 | F22: 5 | G22: 5 | H22: 5 | I22: 100 | J22: Y | K22: 100 | L22: Y | M22: 100 | N22: Y | O22: 100 | P22: Y | Q22: 100 | R22: Y
A23: 13 | B23: 1SG15EC014 | C23: APOORVA G A | D23: 5 | E23: 5 | F23: 5 | G23: 5 | H23: 5 | I23: 100 | J23: Y | K23: 100 | L23: Y | M23: 100 | N23: Y | O23: 100 | P23: Y | Q23: 100 | R23: Y
A24: 14 | B24: 1SG15EC015 | C24: ARCHANA B S | D24: 5 | E24: 5 | F24: 5 | G24: 5 | H24: 5 | I24: 100 | J24: Y | K24: 100 | L24: Y | M24: 100 | N24: Y | O24: 100 | P24: Y | Q24: 100 | R24: Y
A25: 15 | B25: 1SG15EC016 | C25: ASHWANI GUPTA | D25: 5 | E25: 5 | F25: 5 | G25: 5 | H25: 5 | I25: 100 | J25: Y | K25: 100 | L25: Y | M25: 100 | N25: Y | O25: 100 | P25: Y | Q25: 100 | R25: Y
A26: 16 | B26: 1SG15EC017 | C26: ASHWIN V | D26: 5 | E26: 5 | F26: 5 | G26: 5 | H26: 5 | I26: 100 | J26: Y | K26: 100 | L26: Y | M26: 100 | N26: Y | O26: 100 | P26: Y | Q26: 100 | R26: Y
A27: 17 | B27: 1SG15EC018 | C27: B NIKHILESHWAR REDDY | D27: 5 | E27: 5 | F27: 5 | G27: 5 | H27: 5 | I27: 100 | J27: Y | K27: 100 | L27: Y | M27: 100 | N27: Y | O27: 100 | P27: Y | Q27: 100 | R27: Y
A28: 18 | B28: 1SG15EC019 | C28: BHAVYA R | D28: 5 | E28: 5 | F28: 5 | G28: 5 | H28: 5 | I28: 100 | J28: Y | K28: 100 | L28: Y | M28: 100 | N28: Y | O28: 100 | P28: Y | Q28: 100 | R28: Y
A29: 19 | B29: 1SG15EC020 | C29: BHOOMIKA J | D29: 5 | E29: 5 | F29: 5 | G29: 5 | H29: 5 | I29: 100 | J29: Y | K29: 100 | L29: Y | M29: 100 | N29: Y | O29: 100 | P29: Y | Q29: 100 | R29: Y
A30: 20 | B30: 1SG15EC021 | C30: BINDU B | D30: 5 | E30: 5 | F30: 5 | G30: 5 | H30: 5 | I30: 100 | J30: Y | K30: 100 | L30: Y | M30: 100 | N30: Y | O30: 100 | P30: Y | Q30: 100 | R30: Y
A31: 21 | B31: 1SG15EC022 | C31: BIPUL KUMAR | D31: 5 | E31: 5 | F31: 5 | G31: 5 | H31: 5 | I31: 100 | J31: Y | K31: 100 | L31: Y | M31: 100 | N31: Y | O31: 100 | P31: Y | Q31: 100 | R31: Y
A32: 22 | B32: 1SG15EC023 | C32: C S ADITH KIRAN | D32: 5 | E32: 5 | F32: 5 | G32: 5 | H32: 5 | I32: 100 | J32: Y | K32: 100 | L32: Y | M32: 100 | N32: Y | O32: 100 | P32: Y | Q32: 100 | R32: Y
A33: 23 | B33: 1SG15EC024 | C33: CHANDANA D L | D33: 5 | E33: 5 | F33: 5 | G33: 5 | H33: 5 | I33: 100 | J33: Y | K33: 100 | L33: Y | M33: 100 | N33: Y | O33: 100 | P33: Y | Q33: 100 | R33: Y
A34: 24 | B34: 1SG15EC025 | C34: CHANNA BASAVA | D34: 5 | E34: 5 | F34: 5 | G34: 5 | H34: 5 | I34: 100 | J34: Y | K34: 100 | L34: Y | M34: 100 | N34: Y | O34: 100 | P34: Y | Q34: 100 | R34: Y
A35: 25 | B35: 1SG15EC026 | C35: CHARITHA B M | D35: 5 | E35: 5 | F35: 5 | G35: 5 | H35: 5 | I35: 100 | J35: Y | K35: 100 | L35: Y | M35: 100 | N35: Y | O35: 100 | P35: Y | Q35: 100 | R35: Y
A36: 26 | B36: 1SG15EC027 | C36: CHIRAG S | D36: 5 | E36: 5 | F36: 5 | G36: 5 | H36: 5 | I36: 100 | J36: Y | K36: 100 | L36: Y | M36: 100 | N36: Y | O36: 100 | P36: Y | Q36: 100 | R36: Y
A37: 27 | B37: 1SG15EC028 | C37: CHITHRA K | D37: 5 | E37: 5 | F37: 5 | G37: 5 | H37: 5 | I37: 100 | J37: Y | K37: 100 | L37: Y | M37: 100 | N37: Y | O37: 100 | P37: Y | Q37: 100 | R37: Y
A38: 28 | B38: 1SG15EC029 | C38: DARSHAN C | D38: 5 | E38: 5 | F38: 5 | G38: 5 | H38: 5 | I38: 100 | J38: Y | K38: 100 | L38: Y | M38: 100 | N38: Y | O38: 100 | P38: Y | Q38: 100 | R38: Y
A39: 29 | B39: 1SG15EC030 | C39: DHARMKIRTI KUMAR | D39: 5 | E39: 5 | F39: 5 | G39: 5 | H39: 5 | I39: 100 | J39: Y | K39: 100 | L39: Y | M39: 100 | N39: Y | O39: 100 | P39: Y | Q39: 100 | R39: Y
A40: 30 | B40: 1SG15EC031 | C40: DILIP V | D40: 5 | E40: 5 | F40: 5 | G40: 5 | H40: 5 | I40: 100 | J40: Y | K40: 100 | L40: Y | M40: 100 | N40: Y | O40: 100 | P40: Y | Q40: 100 | R40: Y
A41: 31 | B41: 1SG15EC032 | C41: DIVYA B | D41: 5 | E41: 5 | F41: 5 | G41: 5 | H41: 5 | I41: 100 | J41: Y | K41: 100 | L41: Y | M41: 100 | N41: Y | O41: 100 | P41: Y | Q41: 100 | R41: Y
A42: 32 | B42: 1SG15EC033 | C42: DIVYA R | D42: 5 | E42: 5 | F42: 5 | G42: 5 | H42: 5 | I42: 100 | J42: Y | K42: 100 | L42: Y | M42: 100 | N42: Y | O42: 100 | P42: Y | Q42: 100 | R42: Y
A43: 33 | B43: 1SG15EC034 | C43: GEETHA M | D43: 5 | E43: 5 | F43: 5 | G43: 5 | H43: 5 | I43: 100 | J43: Y | K43: 100 | L43: Y | M43: 100 | N43: Y | O43: 100 | P43: Y | Q43: 100 | R43: Y
A44: 34 | B44: 1SG15EC035 | C44: GIRISH S | D44: 5 | E44: 5 | F44: 5 | G44: 5 | H44: 5 | I44: 100 | J44: Y | K44: 100 | L44: Y | M44: 100 | N44: Y | O44: 100 | P44: Y | Q44: 100 | R44: Y
A45: 35 | B45: 1SG15EC036 | C45: GOUTHAM M | D45: 5 | E45: 5 | F45: 5 | G45: 5 | H45: 5 | I45: 100 | J45: Y | K45: 100 | L45: Y | M45: 100 | N45: Y | O45: 100 | P45: Y | Q45: 100 | R45: Y
A46: 36 | B46: 1SG15EC037 | C46: HARISH C | D46: 5 | E46: 5 | F46: 5 | G46: 5 | H46: 5 | I46: 100 | J46: Y | K46: 100 | L46: Y | M46: 100 | N46: Y | O46: 100 | P46: Y | Q46: 100 | R46: Y
A47: 37 | B47: 1SG15EC038 | C47: HARSHA K B | D47: 5 | E47: 5 | F47: 5 | G47: 5 | H47: 5 | I47: 100 | J47: Y | K47: 100 | L47: Y | M47: 100 | N47: Y | O47: 100 | P47: Y | Q47: 100 | R47: Y
A48: 38 | B48: 1SG15EC039 | C48: HARSHITHA L | D48: 5 | E48: 5 | F48: 5 | G48: 5 | H48: 5 | I48: 100 | J48: Y | K48: 100 | L48: Y | M48: 100 | N48: Y | O48: 100 | P48: Y | Q48: 100 | R48: Y
A49: 39 | C49: HIMANSHU SHEKHAR | D49: 5 | E49: 5 | F49: 5 | G49: 5 | H49: 5 | I49: 100 | J49: Y | K49: 100 | L49: Y | M49: 100 | N49: Y | O49: 100 | P49: Y | Q49: 100 | R49: Y
A50: 40 | B50: 1SG15EC041 | C50: HIMANSHU TIWARI | D50: 5 | E50: 5 | F50: 5 | G50: 5 | H50: 5 | I50: 100 | J50: Y | K50: 100 | L50: Y | M50: 100 | N50: Y | O50: 100 | P50: Y | Q50: 100 | R50: Y
A51: 41 | B51: 1SG15EC042 | C51: K AKSHAYA | D51: 5 | E51: 5 | F51: 5 | G51: 5 | H51: 5 | I51: 100 | J51: Y | K51: 100 | L51: Y | M51: 100 | N51: Y | O51: 100 | P51: Y | Q51: 100 | R51: Y
A52: 42 | B52: 1SG15EC043 | C52: KANAKA LAKSHMI A | D52: 5 | E52: 5 | F52: 5 | G52: 5 | H52: 5 | I52: 100 | J52: Y | K52: 100 | L52: Y | M52: 100 | N52: Y | O52: 100 | P52: Y | Q52: 100 | R52: Y
A53: 43 | B53: 1SG15EC044 | C53: KANNIKA HEGDE | D53: 5 | E53: 5 | F53: 5 | G53: 5 | H53: 5 | I53: 100 | J53: Y | K53: 100 | L53: Y | M53: 100 | N53: Y | O53: 100 | P53: Y | Q53: 100 | R53: Y
A54: 44 | B54: 1SG15EC045 | C54: KARTHIK K | D54: 5 | E54: 5 | F54: 5 | G54: 5 | H54: 5 | I54: 100 | J54: Y | K54: 100 | L54: Y | M54: 100 | N54: Y | O54: 100 | P54: Y | Q54: 100 | R54: Y
A55: 45 | B55: 1SG15EC046 | C55: KAVYASHREE G S | D55: 5 | E55: 5 | F55: 5 | G55: 5 | H55: 5 | I55: 100 | J55: Y | K55: 100 | L55: Y | M55: 100 | N55: Y | O55: 100 | P55: Y | Q55: 100 | R55: Y
A56: 46 | B56: 1SG15EC047 | C56: KIRAN R | D56: 5 | E56: 5 | F56: 5 | G56: 5 | H56: 5 | I56: 100 | J56: Y | K56: 100 | L56: Y | M56: 100 | N56: Y | O56: 100 | P56: Y | Q56: 100 | R56: Y
A57: 47 | B57: 1SG15EC048 | C57: KOSLENDER SINGH | D57: 5 | E57: 5 | F57: 5 | G57: 5 | H57: 5 | I57: 100 | J57: Y | K57: 100 | L57: Y | M57: 100 | N57: Y | O57: 100 | P57: Y | Q57: 100 | R57: Y
A58: 48 | B58: 1SG15EC049 | C58: KOTHOJU SRIDHAR CHARY | D58: 5 | E58: 5 | F58: 5 | G58: 5 | H58: 5 | I58: 100 | J58: Y | K58: 100 | L58: Y | M58: 100 | N58: Y | O58: 100 | P58: Y | Q58: 100 | R58: Y
A59: 48 | B59: 1SG15EC050 | C59: KOUSALYA S | D59: 5 | E59: 5 | F59: 5 | G59: 5 | H59: 5 | I59: 100 | J59: Y | K59: 100 | L59: Y | M59: 100 | N59: Y | O59: 100 | P59: Y | Q59: 100 | R59: Y
A60: 49 | B60: 1SG15EC051 | C60: KOUSHALYA D | D60: 5 | E60: 5 | F60: 5 | G60: 5 | H60: 5 | I60: 100 | J60: Y | K60: 100 | L60: Y | M60: 100 | N60: Y | O60: 100 | P60: Y | Q60: 100 | R60: Y
A61: 50 | B61: 1SG15EC052 | C61: KUMARI NEHA | D61: 5 | E61: 5 | F61: 5 | G61: 5 | H61: 5 | I61: 100 | J61: Y | K61: 100 | L61: Y | M61: 100 | N61: Y | O61: 100 | P61: Y | Q61: 100 | R61: Y
A62: 51 | B62: 1SG15EC053 | C62: LAVANYA M L | D62: 5 | E62: 5 | F62: 5 | G62: 5 | H62: 5 | I62: 100 | J62: Y | K62: 100 | L62: Y | M62: 100 | N62: Y | O62: 100 | P62: Y | Q62: 100 | R62: Y
A63: 52 | B63: 1SG15EC054 | C63: LINGARAJU L | D63: 5 | E63: 5 | F63: 5 | G63: 5 | H63: 5 | I63: 100 | J63: Y | K63: 100 | L63: Y | M63: 100 | N63: Y | O63: 100 | P63: Y | Q63: 100 | R63: Y
A64: 53 | B64: 1SG15EC056 | C64: MANJUNATHA NAIK N | D64: 5 | E64: 5 | F64: 5 | G64: 5 | H64: 5 | I64: 100 | J64: Y | K64: 100 | L64: Y | M64: 100 | N64: Y | O64: 100 | P64: Y | Q64: 100 | R64: Y
A65: 54 | B65: 1SG15EC057 | C65: MANOJ G | D65: 5 | E65: 5 | F65: 5 | G65: 5 | H65: 5 | I65: 100 | J65: Y | K65: 100 | L65: Y | M65: 100 | N65: Y | O65: 100 | P65: Y | Q65: 100 | R65: Y
A66: 55 | B66: 1SG15EC058 | C66: MANU RAJ SINGH | D66: 5 | E66: 5 | F66: 5 | G66: 5 | H66: 5 | I66: 100 | J66: Y | K66: 100 | L66: Y | M66: 100 | N66: Y | O66: 100 | P66: Y | Q66: 100 | R66: Y
A67: 56 | B67: 1SG15EC059 | C67: MEGHANA A S | D67: 5 | E67: 5 | F67: 5 | G67: 5 | H67: 5 | I67: 100 | J67: Y | K67: 100 | L67: Y | M67: 100 | N67: Y | O67: 100 | P67: Y | Q67: 100 | R67: Y
A68: 57 | B68: 1SG15EC060 | C68: MOHAMMED SHAHID | D68: 5 | E68: 5 | F68: 5 | G68: 5 | H68: 5 | I68: 100 | J68: Y | K68: 100 | L68: Y | M68: 100 | N68: Y | O68: 100 | P68: Y | Q68: 100 | R68: Y
A69: 58 | B69: 1SG15EC061 | C69: MOHAN VARMA K | D69: 5 | E69: 5 | F69: 5 | G69: 5 | H69: 5 | I69: 100 | J69: Y | K69: 100 | L69: Y | M69: 100 | N69: Y | O69: 100 | P69: Y | Q69: 100 | R69: Y
A70: 59 | B70: 1SG15EC062 | C70: MOHIT SHARMA | D70: 5 | E70: 5 | F70: 5 | G70: 5 | H70: 5 | I70: 100 | J70: Y | K70: 100 | L70: Y | M70: 100 | N70: Y | O70: 100 | P70: Y | Q70: 100 | R70: Y
B71: 1SG15EC063 | C71: MOTILAL | D71: 5 | E71: 5 | F71: 5 | G71: 5 | H71: 5 | I71: 100 | J71: Y | K71: 100 | L71: Y | M71: 100 | N71: Y | O71: 100 | P71: Y | Q71: 100 | R71: Y
A72: 60 | B72: 1SG15EC064 | C72: NAYANA H J | D72: 5 | E72: 5 | F72: 5 | G72: 5 | H72: 5 | I72: 100 | J72: Y | K72: 100 | L72: Y | M72: 100 | N72: Y | O72: 100 | P72: Y | Q72: 100 | R72: Y
A73: 61 | B73: 1SG15EC065 | C73: NEHA S | D73: 5 | E73: 5 | F73: 5 | G73: 5 | H73: 5 | I73: 100 | J73: Y | K73: 100 | L73: Y | M73: 100 | N73: Y | O73: 100 | P73: Y | Q73: 100 | R73: Y
A74: 62 | B74: 1SG15EC066 | C74: NIDA SULTHANA N | D74: 5 | E74: 5 | F74: 5 | G74: 5 | H74: 5 | I74: 100 | J74: Y | K74: 100 | L74: Y | M74: 100 | N74: Y | O74: 100 | P74: Y | Q74: 100 | R74: Y
A75: 63 | B75: 1SG15EC067 | C75: NIKHIL R A | D75: 5 | E75: 5 | F75: 5 | G75: 5 | H75: 5 | I75: 100 | J75: Y | K75: 100 | L75: Y | M75: 100 | N75: Y | O75: 100 | P75: Y | Q75: 100 | R75: Y
B76: 1SG15EC069 | C76: NISHAL KUMAR TIWARI | D76: 5 | E76: 5 | F76: 5 | G76: 5 | H76: 5 | I76: =D76/0.05 -> 100 | J76: =IF(I76<60,"N","Y") -> Y | K76: =F76/0.05 -> 100 | L76: =IF(K76<60,"N","Y") -> Y | M76: =H76/0.05 -> 100 | N76: =IF(M76<60,"N","Y") -> Y | O76: =(G76/0.05) -> 100 | P76: =IF(O76<60,"N","Y") -> Y | Q76: =(H76/0.05) -> 100 | R76: =IF(Q76<60,"N","Y") -> Y
A77: 64 | B77: 1SG15EC069 | C77: NISHANT KUMAR | D77: 5 | E77: 5 | F77: 5 | G77: 5 | H77: 5 | I77: 100 | J77: Y | K77: 100 | L77: Y | M77: 100 | N77: Y | O77: 100 | P77: Y | Q77: 100 | R77: Y
A78: 65 | B78: 1SG15EC070 | C78: NIVEDITHA M | D78: 5 | E78: 5 | F78: 5 | G78: 5 | H78: 5 | I78: 100 | J78: Y | K78: 100 | L78: Y | M78: 100 | N78: Y | O78: 100 | P78: Y | Q78: 100 | R78: Y
A79: 66 | B79: 1SG15EC071 | C79: NIVEDITHA S | D79: 5 | E79: 5 | F79: 5 | G79: 5 | H79: 5 | I79: 100 | J79: Y | K79: 100 | L79: Y | M79: 100 | N79: Y | O79: 100 | P79: Y | Q79: 100 | R79: Y
A80: 67 | B80: 1SG15EC072 | C80: PAVITHRA J | D80: 5 | E80: 5 | F80: 5 | G80: 5 | H80: 5 | I80: 100 | J80: Y | K80: 100 | L80: Y | M80: 100 | N80: Y | O80: 100 | P80: Y | Q80: 100 | R80: Y
A81: 68 | B81: 1SG15EC073 | C81: PAVITRA | D81: 5 | E81: 5 | F81: 5 | G81: 5 | H81: 5 | I81: 100 | J81: Y | K81: 100 | L81: Y | M81: 100 | N81: Y | O81: 100 | P81: Y | Q81: 100 | R81: Y
A82: 69 | B82: 1SG15EC074 | C82: POOJA R | D82: 5 | E82: 5 | F82: 5 | G82: 5 | H82: 5 | I82: 100 | J82: Y | K82: 100 | L82: Y | M82: 100 | N82: Y | O82: 100 | P82: Y | Q82: 100 | R82: Y
A83: 70 | B83: 1SG15EC075 | C83: POOJA S BHAT | D83: 5 | E83: 5 | F83: 5 | G83: 5 | H83: 5 | I83: 100 | J83: Y | K83: 100 | L83: Y | M83: 100 | N83: Y | O83: 100 | P83: Y | Q83: 100 | R83: Y
A84: 71 | B84: 1SG15EC076 | C84: PRAJWAL K | D84: 5 | E84: 5 | F84: 5 | G84: 5 | H84: 5 | I84: 100 | J84: Y | K84: 100 | L84: Y | M84: 100 | N84: Y | O84: 100 | P84: Y | Q84: 100 | R84: Y
A85: 72 | B85: 1SG15EC077 | C85: PRAJWAL S | D85: 5 | E85: 5 | F85: 5 | G85: 5 | H85: 5 | I85: 100 | J85: Y | K85: 100 | L85: Y | M85: 100 | N85: Y | O85: 100 | P85: Y | Q85: 100 | R85: Y
A86: 73 | B86: 1SG15EC078 | C86: PRASHANT RAJPUT | D86: 5 | E86: 5 | F86: 5 | G86: 5 | H86: 5 | I86: 100 | J86: Y | K86: 100 | L86: Y | M86: 100 | N86: Y | O86: 100 | P86: Y | Q86: 100 | R86: Y
A87: 74 | B87: 1SG15EC079 | C87: PRASHANT SRIVASTAVA | D87: 5 | E87: 5 | F87: 5 | G87: 5 | H87: 5 | I87: 100 | J87: Y | K87: 100 | L87: Y | M87: 100 | N87: Y | O87: 100 | P87: Y | Q87: 100 | R87: Y
A88: 75 | B88: 1SG15EC080 | C88: PRATEEK KUMAR THAKUR | D88: 5 | E88: 5 | F88: 5 | G88: 5 | H88: 5 | I88: 100 | J88: Y | K88: 100 | L88: Y | M88: 100 | N88: Y | O88: 100 | P88: Y | Q88: 100 | R88: Y
A89: 76 | B89: 1SG15EC081 | C89: PRATHIBHA K | D89: 5 | E89: 5 | F89: 5 | G89: 5 | H89: 5 | I89: 100 | J89: Y | K89: 100 | L89: Y | M89: 100 | N89: Y | O89: 100 | P89: Y | Q89: 100 | R89: Y
A90: 77 | B90: 1SG15EC082 | C90: PREMA K S | D90: 5 | E90: 5 | F90: 5 | G90: 5 | H90: 5 | I90: 100 | J90: Y | K90: 100 | L90: Y | M90: 100 | N90: Y | O90: 100 | P90: Y | Q90: 100 | R90: Y
A91: 78 | B91: 1SG15EC083 | C91: PRIYADARSHINI C | D91: 5 | E91: 5 | F91: 5 | G91: 5 | H91: 5 | I91: 100 | J91: Y | K91: 100 | L91: Y | M91: 100 | N91: Y | O91: 100 | P91: Y | Q91: 100 | R91: Y
A92: 79 | B92: 1SG15EC084 | C92: PRUTHVI R | D92: 5 | E92: 5 | F92: 5 | G92: 5 | H92: 5 | I92: 100 | J92: Y | K92: 100 | L92: Y | M92: 100 | N92: Y | O92: 100 | P92: Y | Q92: 100 | R92: Y
A93: 80 | B93: 1SG15EC085 | C93: R REKHA | D93: 5 | E93: 5 | F93: 5 | G93: 5 | H93: 5 | I93: 100 | J93: Y | K93: 100 | L93: Y | M93: 100 | N93: Y | O93: 100 | P93: Y | Q93: 100 | R93: Y
A94: 81 | B94: 1SG15EC086 | C94: RAJ KUMAR | D94: 5 | E94: 5 | F94: 5 | G94: 5 | H94: 5 | I94: 100 | J94: Y | K94: 100 | L94: Y | M94: 100 | N94: Y | O94: 100 | P94: Y | Q94: 100 | R94: Y
A95: 82 | B95: 1SG15EC087 | C95: RAKSHA G R | D95: 5 | E95: 5 | F95: 5 | G95: 5 | H95: 5 | I95: 100 | J95: Y | K95: 100 | L95: Y | M95: 100 | N95: Y | O95: 100 | P95: Y | Q95: 100 | R95: Y
A96: 83 | B96: 1SG15EC088 | C96: RANJAN S | D96: 5 | E96: 5 | F96: 5 | G96: 5 | H96: 5 | I96: 100 | J96: Y | K96: 100 | L96: Y | M96: 100 | N96: Y | O96: 100 | P96: Y | Q96: 100 | R96: Y
A97: 84 | B97: 1SG15EC089 | C97: RANJITH GOWDA B | D97: 5 | E97: 5 | F97: 5 | G97: 5 | H97: 5 | I97: 100 | J97: Y | K97: 100 | L97: Y | M97: 100 | N97: Y | O97: 100 | P97: Y | Q97: 100 | R97: Y
A98: 85 | B98: 1SG15EC090 | C98: RAVI C | D98: 5 | E98: 5 | F98: 5 | G98: 5 | H98: 5 | I98: 100 | J98: Y | K98: 100 | L98: Y | M98: 100 | N98: Y | O98: 100 | P98: Y | Q98: 100 | R98: Y
A99: 86 | B99: 1SG15EC091 | C99: SAI SIDDHARTH M | D99: 5 | E99: 5 | F99: 5 | G99: 5 | H99: 5 | I99: 100 | J99: Y | K99: 100 | L99: Y | M99: 100 | N99: Y | O99: 100 | P99: Y | Q99: 100 | R99: Y
A100: 87 | B100: 1SG15EC092 | C100: SANDHYA V | D100: 5 | E100: 5 | F100: 5 | G100: 5 | H100: 5 | I100: 100 | J100: Y | K100: 100 | L100: Y | M100: 100 | N100: Y | O100: 100 | P100: Y | Q100: 100 | R100: Y
A101: 88 | B101: 1SG15EC093 | C101: SANDHYA Y G | D101: 5 | E101: 5 | F101: 5 | G101: 5 | H101: 5 | I101: 100 | J101: Y | K101: 100 | L101: Y | M101: 100 | N101: Y | O101: 100 | P101: Y | Q101: 100 | R101: Y
A102: 89 | B102: 1SG15EC094 | C102: SANJANA A S | D102: 5 | E102: 5 | F102: 5 | G102: 5 | H102: 5 | I102: 100 | J102: Y | K102: 100 | L102: Y | M102: 100 | N102: Y | O102: 100 | P102: Y | Q102: 100 | R102: Y
A103: 90 | B103: 1SG15EC095 | C103: SANJAY KUMAR B N | D103: 5 | E103: 5 | F103: 5 | G103: 5 | H103: 5 | I103: 100 | J103: Y | K103: 100 | L103: Y | M103: 100 | N103: Y | O103: 100 | P103: Y | Q103: 100 | R103: Y
B104: 1SG15EC096 | C104: SANJAY KUMAR L | D104: 5 | E104: 5 | F104: 5 | G104: 5 | H104: 5 | I104: 100 | J104: Y | K104: 100 | L104: Y | M104: 100 | N104: Y | O104: 100 | P104: Y | Q104: 100 | R104: Y
A105: 91 | B105: 1SG15EC098 | C105: SHASHANK H S | D105: 5 | E105: 5 | F105: 5 | G105: 5 | H105: 5 | I105: 100 | J105: Y | K105: 100 | L105: Y | M105: 100 | N105: Y | O105: 100 | P105: Y | Q105: 100 | R105: Y
A106: 92 | B106: 1SG15EC099 | C106: SHASHANK SHEKHAR | D106: 5 | E106: 5 | F106: 5 | G106: 5 | H106: 5 | I106: 100 | J106: Y | K106: 100 | L106: Y | M106: 100 | N106: Y | O106: 100 | P106: Y | Q106: 100 | R106: Y
A107: 93 | B107: 1SG15EC100 | C107: SHASHIKANT KUMAR | D107: 5 | E107: 5 | F107: 5 | G107: 5 | H107: 5 | I107: 100 | J107: Y | K107: 100 | L107: Y | M107: 100 | N107: Y | O107: 100 | P107: Y | Q107: 100 | R107: Y
A108: 94 | B108: 1SG15EC101 | C108: SHRISH JHA | D108: 5 | E108: 5 | F108: 5 | G108: 5 | H108: 5 | I108: 100 | J108: Y | K108: 100 | L108: Y | M108: 100 | N108: Y | O108: 100 | P108: Y | Q108: 100 | R108: Y
A109: 95 | B109: 1SG15EC102 | C109: SHUBHAM KUMAR | D109: 5 | E109: 5 | F109: 5 | G109: 5 | H109: 5 | I109: 100 | J109: Y | K109: 100 | L109: Y | M109: 100 | N109: Y | O109: 100 | P109: Y | Q109: 100 | R109: Y
A110: 96 | B110: 1SG15EC103 | C110: SHUBHAM KUMAR(D) | D110: 5 | E110: 5 | F110: 5 | G110: 5 | H110: 5 | I110: 100 | J110: Y | K110: 100 | L110: Y | M110: 100 | N110: Y | O110: 100 | P110: Y | Q110: 100 | R110: Y
A111: 97 | B111: 1SG15EC104 | C111: SHUBHAM KUMAR MISHRA | D111: 5 | E111: 5 | F111: 5 | G111: 5 | H111: 5 | I111: 100 | J111: Y | K111: 100 | L111: Y | M111: 100 | N111: Y | O111: 100 | P111: Y | Q111: 100 | R111: Y
A112: 98 | B112: 1SG15EC105 | C112: SMITHA B BIRADAR | D112: 5 | E112: 5 | F112: 5 | G112: 5 | H112: 5 | I112: 100 | J112: Y | K112: 100 | L112: Y | M112: 100 | N112: Y | O112: 100 | P112: Y | Q112: 100 | R112: Y
B113: 1SG15EC106 | C113: SONAM KUMARI | D113: 5 | E113: 5 | F113: 5 | G113: 5 | H113: 5 | I113: 100 | J113: Y | K113: 100 | L113: Y | M113: 100 | N113: Y | O113: 100 | P113: Y | Q113: 100 | R113: Y
A114: 99 | B114: 1SG15EC107 | C114: SUBHAM SHEKHAR PANDEY | D114: 5 | E114: 5 | F114: 5 | G114: 5 | H114: 5 | I114: 100 | J114: Y | K114: 100 | L114: Y | M114: 100 | N114: Y | O114: 100 | P114: Y | Q114: 100 | R114: Y
A115: 100 | B115: 1SG15EC108 | C115: SUKANYA KRISHNA POOJARI | D115: 5 | E115: 5 | F115: 5 | G115: 5 | H115: 5 | I115: 100 | J115: Y | K115: 100 | L115: Y | M115: 100 | N115: Y | O115: 100 | P115: Y | Q115: 100 | R115: Y
B116: 1SG15EC109 | C116: SUMAIYA I | D116: 5 | E116: 5 | F116: 5 | G116: 5 | H116: 5 | I116: 100 | J116: Y | K116: 100 | L116: Y | M116: 100 | N116: Y | O116: 100 | P116: Y | Q116: 100 | R116: Y
A117: 101 | B117: 1SG15EC110 | C117: SUMALATHA N | D117: 5 | E117: 5 | F117: 5 | G117: 5 | H117: 5 | I117: 100 | J117: Y | K117: 100 | L117: Y | M117: 100 | N117: Y | O117: 100 | P117: Y | Q117: 100 | R117: Y
A118: 102 | B118: 1SG15EC111 | C118: USHA KIRAN S | D118: 5 | E118: 5 | F118: 5 | G118: 5 | H118: 5 | I118: 100 | J118: Y | K118: 100 | L118: Y | M118: 100 | N118: Y | O118: 100 | P118: Y | Q118: 100 | R118: Y
A119: 103 | B119: 1SG15EC112 | C119: VAISHNAVI R SHETTY | D119: 5 | E119: 5 | F119: 5 | G119: 5 | H119: 5 | I119: 100 | J119: Y | K119: 100 | L119: Y | M119: 100 | N119: Y | O119: 100 | P119: Y | Q119: 100 | R119: Y
A120: 104 | B120: 1SG15EC113 | C120: VARSHINI N(D) | D120: 5 | E120: 5 | F120: 5 | G120: 5 | H120: 5 | I120: 100 | J120: Y | K120: 100 | L120: Y | M120: 100 | N120: Y | O120: 100 | P120: Y | Q120: 100 | R120: Y
A121: 105 | B121: 1SG15EC114 | C121: VEERESH M | D121: 5 | E121: 5 | F121: 5 | G121: 5 | H121: 5 | I121: 100 | J121: Y | K121: 100 | L121: Y | M121: 100 | N121: Y | O121: 100 | P121: Y | Q121: 100 | R121: Y
A122: 106 | B122: 1SG15EC115 | C122: VIKAS KASHYAP | D122: 5 | E122: 5 | F122: 5 | G122: 5 | H122: 5 | I122: 100 | J122: Y | K122: 100 | L122: Y | M122: 100 | N122: Y | O122: 100 | P122: Y | Q122: 100 | R122: Y
A123: 107 | B123: 1SG15EC116 | C123: VINAYAKA L S | D123: 5 | E123: 5 | F123: 5 | G123: 5 | H123: 5 | I123: 100 | J123: Y | K123: 100 | L123: Y | M123: 100 | N123: Y | O123: 100 | P123: Y | Q123: 100 | R123: Y
B124: 1SG13EC131 | C124: RAMYA SK JADAV | D124: 5 | E124: 5 | F124: 5 | G124: 5 | H124: 5 | I124: 100 | J124: Y | K124: 100 | L124: Y | M124: 100 | N124: Y | O124: 100 | P124: Y | Q124: 100 | R124: Y
J125: =COUNTIF(J11:J124,"y") -> 114 | L125: =COUNTIF(L11:L124,"y") -> 114 | N125: =COUNTIF(N11:N124,"y") -> 114 | P125: =COUNTIF(P11:P124,"y") -> 114 | R125: =COUNTIF(R11:R124,"y") -> 114

Sheet final exam
B1: Sapthagiri College of Engineering
B2: Department of Electronics and Communication Engineering
C3: Basic Electronics (15ELN15)
B4: II Semester Test marks for EVEN Sem 2015-16 (G and H sections)
A5: Sl. No. | B5: USN | C5: NAME | D5: Final exam | I5: Course Objectives
D8: CO 1 | E8: CO2 | F8: CO3 | G8: CO4 | H8: C | I8: CO1 | K8: CO2 | M8: CO3 | O8: CO 4 | Q8: C0 5
C9: MAX MARKS | D9: 5 | E9: 5 | F9: 5 | G9: 5 | H9: 5
I10: % | K10: % | M10: % | O10: % | Q10: %
A11: 1 | B11: 1SG15EC001 | C11: ABHIJITH N | D11: 85 | E11: =D11 -> 85 | F11: =D11 -> 85 | G11: =D11 -> 85 | H11: =D11 -> 85 | I11: =D11/1 -> 85 | J11: =IF(I11<60,"N","Y") -> Y | K11: =F11/1 -> 85 | L11: =IF(K11<60,"N","Y") -> Y | M11: =H11/1 -> 85 | N11: =IF(M11<60,"N","Y") -> Y | O11: =I11 -> 85 | P11: =IF(O11<60,"N","Y") -> Y | Q11: =I11 -> 85 | R11: =IF(Q11<60,"N","Y") -> Y
A12: 2 | B12: 1SG15EC002 | C12: ABHISHEK K | D12: 35 | E12: =D12 -> 35 | F12: =D12 -> 35 | G12: =D12 -> 35 | H12: =D12 -> 35 | I12: =D12/1 -> 35 | J12: =IF(I12<60,"N","Y") -> N | K12: =F12/1 -> 35 | L12: =IF(K12<60,"N","Y") -> N | M12: =H12/1 -> 35 | N12: =IF(M12<60,"N","Y") -> N | O12: =I12 -> 35 | P12: =IF(O12<60,"N","Y") -> N | Q12: =I12 -> 35 | R12: =IF(Q12<60,"N","Y") -> N
A13: 3 | B13: 1SG15EC003 | C13: ABHISHEK N | D13: 45 | E13: 45 | F13: 45 | G13: 45 | H13: 45 | I13: 45 | J13: N | K13: 45 | L13: N | M13: 45 | N13: N | O13: 45 | P13: N | Q13: 45 | R13: N
A14: 4 | B14: 1SG15EC004 | C14: ADITYA P THAKKER | D14: 45 | E14: 45 | F14: 45 | G14: 45 | H14: 45 | I14: 45 | J14: N | K14: 45 | L14: N | M14: 45 | N14: N | O14: 45 | P14: N | Q14: 45 | R14: N
A15: 5 | B15: 1SG15EC006 | C15: AISHWARYA G | D15: 85 | E15: 85 | F15: 85 | G15: 85 | H15: 85 | I15: 85 | J15: Y | K15: 85 | L15: Y | M15: 85 | N15: Y | O15: 85 | P15: Y | Q15: 85 | R15: Y
A16: 6 | B16: 1SG15EC007 | C16: AKHIL SINGH | D16: 35 | E16: 35 | F16: 35 | G16: 35 | H16: 35 | I16: 35 | J16: N | K16: 35 | L16: N | M16: 35 | N16: N | O16: 35 | P16: N | Q16: 35 | R16: N
A17: 7 | B17: 1SG15EC008 | C17: ANJALI V JAKATI | D17: 85 | E17: 85 | F17: 85 | G17: 85 | H17: 85 | I17: 85 | J17: Y | K17: 85 | L17: Y | M17: 85 | N17: Y | O17: 85 | P17: Y | Q17: 85 | R17: Y
A18: 8 | B18: 1SG15EC009 | C18: ANJAN O | D18: 75 | E18: 75 | F18: 75 | G18: 75 | H18: 75 | I18: 75 | J18: Y | K18: 75 | L18: Y | M18: 75 | N18: Y | O18: 75 | P18: Y | Q18: 75 | R18: Y
A19: 9 | B19: 1SG15EC010 | C19: ANKIT PRIYAM | D19: 35 | E19: 35 | F19: 35 | G19: 35 | H19: 35 | I19: 35 | J19: N | K19: 35 | L19: N | M19: 35 | N19: N | O19: 35 | P19: N | Q19: 35 | R19: N
A20: 10 | B20: 1SG15EC011 | C20: ANKIT SHIVHARE | D20: 75 | E20: 75 | F20: 75 | G20: 75 | H20: 75 | I20: 75 | J20: Y | K20: 75 | L20: Y | M20: 75 | N20: Y | O20: 75 | P20: Y | Q20: 75 | R20: Y
A21: 11 | B21: 1SG15EC012 | C21: ANN NILEENA HENRY C | D21: 85 | E21: 85 | F21: 85 | G21: 85 | H21: 85 | I21: 85 | J21: Y | K21: 85 | L21: Y | M21: 85 | N21: Y | O21: 85 | P21: Y | Q21: 85 | R21: Y
A22: 12 | B22: 1SG15EC013 | C22: ANU PRIYE | D22: 55 | E22: 55 | F22: 55 | G22: 55 | H22: 55 | I22: 55 | J22: N | K22: 55 | L22: N | M22: 55 | N22: N | O22: 55 | P22: N | Q22: 55 | R22: N
A23: 13 | B23: 1SG15EC014 | C23: APOORVA G A | D23: 45 | E23: 45 | F23: 45 | G23: 45 | H23: 45 | I23: 45 | J23: N | K23: 45 | L23: N | M23: 45 | N23: N | O23: 45 | P23: N | Q23: 45 | R23: N
A24: 14 | B24: 1SG15EC015 | C24: ARCHANA B S | D24: 55 | E24: 55 | F24: 55 | G24: 55 | H24: 55 | I24: 55 | J24: N | K24: 55 | L24: N | M24: 55 | N24: N | O24: 55 | P24: N | Q24: 55 | R24: N
A25: 15 | B25: 1SG15EC016 | C25: ASHWANI GUPTA | D25: 35 | E25: 35 | F25: 35 | G25: 35 | H25: 35 | I25: 35 | J25: N | K25: 35 | L25: N | M25: 35 | N25: N | O25: 35 | P25: N | Q25: 35 | R25: N
A26: 16 | B26: 1SG15EC017 | C26: ASHWIN V | D26: 35 | E26: 35 | F26: 35 | G26: 35 | H26: 35 | I26: 35 | J26: N | K26: 35 | L26: N | M26: 35 | N26: N | O26: 35 | P26: N | Q26: 35 | R26: N
A27: 17 | B27: 1SG15EC018 | C27: B NIKHILESHWAR REDDY | D27: 45 | E27: 45 | F27: 45 | G27: 45 | H27: 45 | I27: 45 | J27: N | K27: 45 | L27: N | M27: 45 | N27: N | O27: 45 | P27: N | Q27: 45 | R27: N
A28: 18 | B28: 1SG15EC019 | C28: BHAVYA R | D28: 45 | E28: 45 | F28: 45 | G28: 45 | H28: 45 | I28: 45 | J28: N | K28: 45 | L28: N | M28: 45 | N28: N | O28: 45 | P28: N | Q28: 45 | R28: N
A29: 19 | B29: 1SG15EC020 | C29: BHOOMIKA J | D29: 75 | E29: 75 | F29: 75 | G29: 75 | H29: 75 | I29: 75 | J29: Y | K29: 75 | L29: Y | M29: 75 | N29: Y | O29: 75 | P29: Y | Q29: 75 | R29: Y
A30: 20 | B30: 1SG15EC021 | C30: BINDU B | D30: 65 | E30: 65 | F30: 65 | G30: 65 | H30: 65 | I30: 65 | J30: Y | K30: 65 | L30: Y | M30: 65 | N30: Y | O30: 65 | P30: Y | Q30: 65 | R30: Y
A31: 21 | B31: 1SG15EC022 | C31: BIPUL KUMAR | D31: 55 | E31: 55 | F31: 55 | G31: 55 | H31: 55 | I31: 55 | J31: N | K31: 55 | L31: N | M31: 55 | N31: N | O31: 55 | P31: N | Q31: 55 | R31: N
A32: 22 | B32: 1SG15EC023 | C32: C S ADITH KIRAN | D32: 95 | E32: 95 | F32: 95 | G32: 95 | H32: 95 | I32: 95 | J32: Y | K32: 95 | L32: Y | M32: 95 | N32: Y | O32: 95 | P32: Y | Q32: 95 | R32: Y
A33: 23 | B33: 1SG15EC024 | C33: CHANDANA D L | D33: 85 | E33: 85 | F33: 85 | G33: 85 | H33: 85 | I33: 85 | J33: Y | K33: 85 | L33: Y | M33: 85 | N33: Y | O33: 85 | P33: Y | Q33: 85 | R33: Y
A34: 24 | B34: 1SG15EC025 | C34: CHANNA BASAVA | D34: 75 | E34: 75 | F34: 75 | G34: 75 | H34: 75 | I34: 75 | J34: Y | K34: 75 | L34: Y | M34: 75 | N34: Y | O34: 75 | P34: Y | Q34: 75 | R34: Y
A35: 25 | B35: 1SG15EC026 | C35: CHARITHA B M | D35: 55 | E35: 55 | F35: 55 | G35: 55 | H35: 55 | I35: 55 | J35: N | K35: 55 | L35: N | M35: 55 | N35: N | O35: 55 | P35: N | Q35: 55 | R35: N
A36: 26 | B36: 1SG15EC027 | C36: CHIRAG S | D36: 75 | E36: 75 | F36: 75 | G36: 75 | H36: 75 | I36: 75 | J36: Y | K36: 75 | L36: Y | M36: 75 | N36: Y | O36: 75 | P36: Y | Q36: 75 | R36: Y
A37: 27 | B37: 1SG15EC028 | C37: CHITHRA K | D37: 85 | E37: 85 | F37: 85 | G37: 85 | H37: 85 | I37: 85 | J37: Y | K37: 85 | L37: Y | M37: 85 | N37: Y | O37: 85 | P37: Y | Q37: 85 | R37: Y
A38: 28 | B38: 1SG15EC029 | C38: DARSHAN C | D38: 35 | E38: 35 | F38: 35 | G38: 35 | H38: 35 | I38: 35 | J38: N | K38: 35 | L38: N | M38: 35 | N38: N | O38: 35 | P38: N | Q38: 35 | R38: N
A39: 29 | B39: 1SG15EC030 | C39: DHARMKIRTI KUMAR | D39: 45 | E39: 45 | F39: 45 | G39: 45 | H39: 45 | I39: 45 | J39: N | K39: 45 | L39: N | M39: 45 | N39: N | O39: 45 | P39: N | Q39: 45 | R39: N
A40: 30 | B40: 1SG15EC031 | C40: DILIP V | D40: 35 | E40: 35 | F40: 35 | G40: 35 | H40: 35 | I40: 35 | J40: N | K40: 35 | L40: N | M40: 35 | N40: N | O40: 35 | P40: N | Q40: 35 | R40: N
A41: 31 | B41: 1SG15EC032 | C41: DIVYA B | D41: 75 | E41: 75 | F41: 75 | G41: 75 | H41: 75 | I41: 75 | J41: Y | K41: 75 | L41: Y | M41: 75 | N41: Y | O41: 75 | P41: Y | Q41: 75 | R41: Y
A42: 32 | B42: 1SG15EC033 | C42: DIVYA R | D42: 85 | E42: 85 | F42: 85 | G42: 85 | H42: 85 | I42: 85 | J42: Y | K42: 85 | L42: Y | M42: 85 | N42: Y | O42: 85 | P42: Y | Q42: 85 | R42: Y
A43: 33 | B43: 1SG15EC034 | C43: GEETHA M | D43: 45 | E43: 45 | F43: 45 | G43: 45 | H43: 45 | I43: 45 | J43: N | K43: 45 | L43: N | M43: 45 | N43: N | O43: 45 | P43: N | Q43: 45 | R43: N
A44: 34 | B44: 1SG15EC035 | C44: GIRISH S | D44: 75 | E44: 75 | F44: 75 | G44: 75 | H44: 75 | I44: 75 | J44: Y | K44: 75 | L44: Y | M44: 75 | N44: Y | O44: 75 | P44: Y | Q44: 75 | R44: Y
A45: 35 | B45: 1SG15EC036 | C45: GOUTHAM M | D45: 65 | E45: 65 | F45: 65 | G45: 65 | H45: 65 | I45: 65 | J45: Y | K45: 65 | L45: Y | M45: 65 | N45: Y | O45: 65 | P45: Y | Q45: 65 | R45: Y
A46: 36 | B46: 1SG15EC037 | C46: HARISH C | D46: 95 | E46: 95 | F46: 95 | G46: 95 | H46: 95 | I46: 95 | J46: Y | K46: 95 | L46: Y | M46: 95 | N46: Y | O46: 95 | P46: Y | Q46: 95 | R46: Y
A47: 37 | B47: 1SG15EC038 | C47: HARSHA K B | D47: 95 | E47: 95 | F47: 95 | G47: 95 | H47: 95 | I47: 95 | J47: Y | K47: 95 | L47: Y | M47: 95 | N47: Y | O47: 95 | P47: Y | Q47: 95 | R47: Y
A48: 38 | B48: 1SG15EC039 | C48: HARSHITHA L | D48: 75 | E48: 75 | F48: 75 | G48: 75 | H48: 75 | I48: 75 | J48: Y | K48: 75 | L48: Y | M48: 75 | N48: Y | O48: 75 | P48: Y | Q48: 75 | R48: Y
A49: 39 | C49: HIMANSHU SHEKHAR | D49: 55 | E49: 55 | F49: 55 | G49: 55 | H49: 55 | I49: 55 | J49: N | K49: 55 | L49: N | M49: 55 | N49: N | O49: 55 | P49: N | Q49: 55 | R49: N
A50: 40 | B50: 1SG15EC041 | C50: HIMANSHU TIWARI | D50: 75 | E50: 75 | F50: 75 | G50: 75 | H50: 75 | I50: 75 | J50: Y | K50: 75 | L50: Y | M50: 75 | N50: Y | O50: 75 | P50: Y | Q50: 75 | R50: Y
A51: 41 | B51: 1SG15EC042 | C51: K AKSHAYA | D51: 75 | E51: 75 | F51: 75 | G51: 75 | H51: 75 | I51: 75 | J51: Y | K51: 75 | L51: Y | M51: 75 | N51: Y | O51: 75 | P51: Y | Q51: 75 | R51: Y
A52: 42 | B52: 1SG15EC043 | C52: KANAKA LAKSHMI A | D52: 35 | E52: 35 | F52: 35 | G52: 35 | H52: 35 | I52: 35 | J52: N | K52: 35 | L52: N | M52: 35 | N52: N | O52: 35 | P52: N | Q52: 35 | R52: N
A53: 43 | B53: 1SG15EC044 | C53: KANNIKA HEGDE | D53: 85 | E53: 85 | F53: 85 | G53: 85 | H53: 85 | I53: 85 | J53: Y | K53: 85 | L53: Y | M53: 85 | N53: Y | O53: 85 | P53: Y | Q53: 85 | R53: Y
A54: 44 | B54: 1SG15EC045 | C54: KARTHIK K | D54: 75 | E54: 75 | F54: 75 | G54: 75 | H54: 75 | I54: 75 | J54: Y | K54: 75 | L54: Y | M54: 75 | N54: Y | O54: 75 | P54: Y | Q54: 75 | R54: Y
A55: 45 | B55: 1SG15EC046 | C55: KAVYASHREE G S | D55: 85 | E55: 85 | F55: 85 | G55: 85 | H55: 85 | I55: 85 | J55: Y | K55: 85 | L55: Y | M55: 85 | N55: Y | O55: 85 | P55: Y | Q55: 85 | R55: Y
A56: 46 | B56: 1SG15EC047 | C56: KIRAN R | D56: 85 | E56: 85 | F56: 85 | G56: 85 | H56: 85 | I56: 85 | J56: Y | K56: 85 | L56: Y | M56: 85 | N56: Y | O56: 85 | P56: Y | Q56: 85 | R56: Y
A57: 47 | B57: 1SG15EC048 | C57: KOSLENDER SINGH | D57: 85 | E57: 85 | F57: 85 | G57: 85 | H57: 85 | I57: 85 | J57: Y | K57: 85 | L57: Y | M57: 85 | N57: Y | O57: 85 | P57: Y | Q57: 85 | R57: Y
A58: 48 | B58: 1SG15EC049 | C58: KOTHOJU SRIDHAR CHARY | D58: 35 | E58: 35 | F58: 35 | G58: 35 | H58: 35 | I58: 35 | J58: N | K58: 35 | L58: N | M58: 35 | N58: N | O58: 35 | P58: N | Q58: 35 | R58: N
A59: 49 | B59: 1SG15EC050 | C59: KOUSALYA S | D59: 35 | E59: 35 | F59: 35 | G59: 35 | H59: 35 | I59: 35 | J59: N | K59: 35 | L59: N | M59: 35 | N59: N | O59: 35 | P59: N | Q59: 35 | R59: N
A60: 50 | B60: 1SG15EC051 | C60: KOUSHALYA D | D60: 85 | E60: 85 | F60: 85 | G60: 85 | H60: 85 | I60: 85 | J60: Y | K60: 85 | L60: Y | M60: 85 | N60: Y | O60: 85 | P60: Y | Q60: 85 | R60: Y
A61: 51 | B61: 1SG15EC052 | C61: KUMARI NEHA | D61: 75 | E61: 75 | F61: 75 | G61: 75 | H61: 75 | I61: 75 | J61: Y | K61: 75 | L61: Y | M61: 75 | N61: Y | O61: 75 | P61: Y | Q61: 75 | R61: Y
A62: 52 | B62: 1SG15EC053 | C62: LAVANYA M L | D62: 85 | E62: 85 | F62: 85 | G62: 85 | H62: 85 | I62: 85 | J62: Y | K62: 85 | L62: Y | M62: 85 | N62: Y | O62: 85 | P62: Y | Q62: 85 | R62: Y
A63: 53 | B63: 1SG15EC054 | C63: LINGARAJU L | D63: 85 | E63: 85 | F63: 85 | G63: 85 | H63: 85 | I63: 85 | J63: Y | K63: 85 | L63: Y | M63: 85 | N63: Y | O63: 85 | P63: Y | Q63: 85 | R63: Y
A64: 54 | B64: 1SG15EC056 | C64: MANJUNATHA NAIK N | D64: 35 | E64: 35 | F64: 35 | G64: 35 | H64: 35 | I64: 35 | J64: N | K64: 35 | L64: N | M64: 35 | N64: N | O64: 35 | P64: N | Q64: 35 | R64: N
A65: 55 | B65: 1SG15EC057 | C65: MANOJ G | D65: 85 | E65: 85 | F65: 85 | G65: 85 | H65: 85 | I65: 85 | J65: Y | K65: 85 | L65: Y | M65: 85 | N65: Y | O65: 85 | P65: Y | Q65: 85 | R65: Y
A66: 56 | B66: 1SG15EC058 | C66: MANU RAJ SINGH | D66: 45 | E66: 45 | F66: 45 | G66: 45 | H66: 45 | I66: 45 | J66: N | K66: 45 | L66: N | M66: 45 | N66: N | O66: 45 | P66: N | Q66: 45 | R66: N
A67: 57 | B67: 1SG15EC059 | C67: MEGHANA A S | D67: 95 | E67: 95 | F67: 95 | G67: 95 | H67: 95 | I67: 95 | J67: Y | K67: 95 | L67: Y | M67: 95 | N67: Y | O67: 95 | P67: Y | Q67: 95 | R67: Y
A68: 58 | B68: 1SG15EC060 | C68: MOHAMMED SHAHID | D68: 55 | E68: 55 | F68: 55 | G68: 55 | H68: 55 | I68: 55 | J68: N | K68: 55 | L68: N | M68: 55 | N68: N | O68: 55 | P68: N | Q68: 55 | R68: N
A69: 59 | B69: 1SG15EC061 | C69: MOHAN VARMA K | D69: 65 | E69: 65 | F69: 65 | G69: 65 | H69: 65 | I69: 65 | J69: Y | K69: 65 | L69: Y | M69: 65 | N69: Y | O69: 65 | P69: Y | Q69: 65 | R69: Y
A70: 60 | B70: 1SG15EC062 | C70: MOHIT SHARMA | D70: 85 | E70: 85 | F70: 85 | G70: 85 | H70: 85 | I70: 85 | J70: Y | K70: 85 | L70: Y | M70: 85 | N70: Y | O70: 85 | P70: Y | Q70: 85 | R70: Y
A71: 61 | B71: 1SG15EC063 | C71: MOTILAL | D71: 45 | E71: 45 | F71: 45 | G71: 45 | H71: 45 | I71: 45 | J71: N | K71: 45 | L71: N | M71: 45 | N71: N | O71: 45 | P71: N | Q71: 45 | R71: N
A72: 62 | B72: 1SG15EC064 | C72: NAYANA H J | D72: 95 | E72: 95 | F72: 95 | G72: 95 | H72: 95 | I72: 95 | J72: Y | K72: 95 | L72: Y | M72: 95 | N72: Y | O72: 95 | P72: Y | Q72: 95 | R72: Y
A73: 63 | B73: 1SG15EC065 | C73: NEHA S | D73: 95 | E73: 95 | F73: 95 | G73: 95 | H73: 95 | I73: 95 | J73: Y | K73: 95 | L73: Y | M73: 95 | N73: Y | O73: 95 | P73: Y | Q73: 95 | R73: Y
A74: 64 | B74: 1SG15EC066 | C74: NIDA SULTHANA N | D74: 95 | E74: 95 | F74: 95 | G74: 95 | H74: 95 | I74: 95 | J74: Y | K74: 95 | L74: Y | M74: 95 | N74: Y | O74: 95 | P74: Y | Q74: 95 | R74: Y
A75: 65 | B75: 1SG15EC067 | C75: NIKHIL R A | D75: 65 | E75: 65 | F75: 65 | G75: 65 | H75: 65 | I75: 65 | J75: Y | K75: 65 | L75: Y | M75: 65 | N75: Y | O75: 65 | P75: Y | Q75: 65 | R75: Y
A76: 66 | B76: 1SG15EC069 | C76: NISHAL KUMAR TIWARI | D76: 35 | E76: =D76 -> 35 | F76: =D76 -> 35 | G76: =D76 -> 35 | H76: =D76 -> 35 | I76: =D76/1 -> 35 | J76: =IF(I76<60,"N","Y") -> N | K76: =F76/1 -> 35 | L76: =IF(K76<60,"N","Y") -> N | M76: =H76/1 -> 35 | N76: =IF(M76<60,"N","Y") -> N | O76: =I76 -> 35 | P76: =IF(O76<60,"N","Y") -> N | Q76: =I76 -> 35 | R76: =IF(Q76<60,"N","Y") -> N
A77: 67 | B77: 1SG15EC069 | C77: NISHANT KUMAR | D77: 75 | E77: 75 | F77: 75 | G77: 75 | H77: 75 | I77: 75 | J77: Y | K77: 75 | L77: Y | M77: 75 | N77: Y | O77: 75 | P77: Y | Q77: 75 | R77: Y
A78: 68 | B78: 1SG15EC070 | C78: NIVEDITHA M | D78: 95 | E78: 95 | F78: 95 | G78: 95 | H78: 95 | I78: 95 | J78: Y | K78: 95 | L78: Y | M78: 95 | N78: Y | O78: 95 | P78: Y | Q78: 95 | R78: Y
A79: 69 | B79: 1SG15EC071 | C79: NIVEDITHA S | D79: 35 | E79: 35 | F79: 35 | G79: 35 | H79: 35 | I79: 35 | J79: N | K79: 35 | L79: N | M79: 35 | N79: N | O79: 35 | P79: N | Q79: 35 | R79: N
A80: 70 | B80: 1SG15EC072 | C80: PAVITHRA J | D80: 95 | E80: 95 | F80: 95 | G80: 95 | H80: 95 | I80: 95 | J80: Y | K80: 95 | L80: Y | M80: 95 | N80: Y | O80: 95 | P80: Y | Q80: 95 | R80: Y
A81: 71 | B81: 1SG15EC073 | C81: PAVITRA | D81: 75 | E81: 75 | F81: 75 | G81: 75 | H81: 75 | I81: 75 | J81: Y | K81: 75 | L81: Y | M81: 75 | N81: Y | O81: 75 | P81: Y | Q81: 75 | R81: Y
A82: 72 | B82: 1SG15EC074 | C82: POOJA R | D82: 65 | E82: 65 | F82: 65 | G82: 65 | H82: 65 | I82: 65 | J82: Y | K82: 65 | L82: Y | M82: 65 | N82: Y | O82: 65 | P82: Y | Q82: 65 | R82: Y
A83: 73 | B83: 1SG15EC075 | C83: POOJA S BHAT | D83: 95 | E83: 95 | F83: 95 | G83: 95 | H83: 95 | I83: 95 | J83: Y | K83: 95 | L83: Y | M83: 95 | N83: Y | O83: 95 | P83: Y | Q83: 95 | R83: Y
A84: 74 | B84: 1SG15EC076 | C84: PRAJWAL K | D84: 65 | E84: 65 | F84: 65 | G84: 65 | H84: 65 | I84: 65 | J84: Y | K84: 65 | L84: Y | M84: 65 | N84: Y | O84: 65 | P84: Y | Q84: 65 | R84: Y
A85: 75 | B85: 1SG15EC077 | C85: PRAJWAL S | D85: 45 | E85: 45 | F85: 45 | G85: 45 | H85: 45 | I85: 45 | J85: N | K85: 45 | L85: N | M85: 45 | N85: N | O85: 45 | P85: N | Q85: 45 | R85: N
A86: 76 | B86: 1SG15EC078 | C86: PRASHANT RAJPUT | D86: 65 | E86: 65 | F86: 65 | G86: 65 | H86: 65 | I86: 65 | J86: Y | K86: 65 | L86: Y | M86: 65 | N86: Y | O86: 65 | P86: Y | Q86: 65 | R86: Y
A87: 77 | B87: 1SG15EC079 | C87: PRASHANT SRIVASTAVA | D87: 75 | E87: 75 | F87: 75 | G87: 75 | H87: 75 | I87: 75 | J87: Y | K87: 75 | L87: Y | M87: 75 | N87: Y | O87: 75 | P87: Y | Q87: 75 | R87: Y
A88: 78 | B88: 1SG15EC080 | C88: PRATEEK KUMAR THAKUR | D88: 95 | E88: 95 | F88: 95 | G88: 95 | H88: 95 | I88: 95 | J88: Y | K88: 95 | L88: Y | M88: 95 | N88: Y | O88: 95 | P88: Y | Q88: 95 | R88: Y
A89: 79 | B89: 1SG15EC081 | C89: PRATHIBHA K | D89: 75 | E89: 75 | F89: 75 | G89: 75 | H89: 75 | I89: 75 | J89: Y | K89: 75 | L89: Y | M89: 75 | N89: Y | O89: 75 | P89: Y | Q89: 75 | R89: Y
A90: 80 | B90: 1SG15EC082 | C90: PREMA K S | D90: 55 | E90: 55 | F90: 55 | G90: 55 | H90: 55 | I90: 55 | J90: N | K90: 55 | L90: N | M90: 55 | N90: N | O90: 55 | P90: N | Q90: 55 | R90: N
A91: 81 | B91: 1SG15EC083 | C91: PRIYADARSHINI C | D91: 65 | E91: 65 | F91: 65 | G91: 65 | H91: 65 | I91: 65 | J91: Y | K91: 65 | L91: Y | M91: 65 | N91: Y | O91: 65 | P91: Y | Q91: 65 | R91: Y
A92: 82 | B92: 1SG15EC084 | C92: PRUTHVI R | D92: 75 | E92: 75 | F92: 75 | G92: 75 | H92: 75 | I92: 75 | J92: Y | K92: 75 | L92: Y | M92: 75 | N92: Y | O92: 75 | P92: Y | Q92: 75 | R92: Y
A93: 83 | B93: 1SG15EC085 | C93: R REKHA | D93: 95 | E93: 95 | F93: 95 | G93: 95 | H93: 95 | I93: 95 | J93: Y | K93: 95 | L93: Y | M93: 95 | N93: Y | O93: 95 | P93: Y | Q93: 95 | R93: Y
A94: 84 | B94: 1SG15EC086 | C94: RAJ KUMAR | D94: 95 | E94: 95 | F94: 95 | G94: 95 | H94: 95 | I94: 95 | J94: Y | K94: 95 | L94: Y | M94: 95 | N94: Y | O94: 95 | P94: Y | Q94: 95 | R94: Y
A95: 85 | B95: 1SG15EC087 | C95: RAKSHA G R | D95: 95 | E95: 95 | F95: 95 | G95: 95 | H95: 95 | I95: 95 | J95: Y | K95: 95 | L95: Y | M95: 95 | N95: Y | O95: 95 | P95: Y | Q95: 95 | R95: Y
A96: 86 | B96: 1SG15EC088 | C96: RANJAN S | D96: 65 | E96: 65 | F96: 65 | G96: 65 | H96: 65 | I96: 65 | J96: Y | K96: 65 | L96: Y | M96: 65 | N96: Y | O96: 65 | P96: Y | Q96: 65 | R96: Y
A97: 87 | B97: 1SG15EC089 | C97: RANJITH GOWDA B | D97: 75 | E97: 75 | F97: 75 | G97: 75 | H97: 75 | I97: 75 | J97: Y | K97: 75 | L97: Y | M97: 75 | N97: Y | O97: 75 | P97: Y | Q97: 75 | R97: Y
A98: 88 | B98: 1SG15EC090 | C98: RAVI C | D98: 65 | E98: 65 | F98: 65 | G98: 65 | H98: 65 | I98: 65 | J98: Y | K98: 65 | L98: Y | M98: 65 | N98: Y | O98: 65 | P98: Y | Q98: 65 | R98: Y
A99: 89 | B99: 1SG15EC091 | C99: SAI SIDDHARTH M | D99: 45 | E99: 45 | F99: 45 | G99: 45 | H99: 45 | I99: 45 | J99: N | K99: 45 | L99: N | M99: 45 | N99: N | O99: 45 | P99: N | Q99: 45 | R99: N
A100: 90 | B100: 1SG15EC092 | C100: SANDHYA V | D100: 55 | E100: 55 | F100: 55 | G100: 55 | H100: 55 | I100: 55 | J100: N | K100: 55 | L100: N | M100: 55 | N100: N | O100: 55 | P100: N | Q100: 55 | R100: N
A101: 91 | B101: 1SG15EC093 | C101: SANDHYA Y G | D101: 75 | E101: 75 | F101: 75 | G101: 75 | H101: 75 | I101: 75 | J101: Y | K101: 75 | L101: Y | M101: 75 | N101: Y | O101: 75 | P101: Y | Q101: 75 | R101: Y
A102: 92 | B102: 1SG15EC094 | C102: SANJANA A S | D102: 85 | E102: 85 | F102: 85 | G102: 85 | H102: 85 | I102: 85 | J102: Y | K102: 85 | L102: Y | M102: 85 | N102: Y | O102: 85 | P102: Y | Q102: 85 | R102: Y
A103: 93 | B103: 1SG15EC095 | C103: SANJAY KUMAR B N | D103: 45 | E103: 45 | F103: 45 | G103: 45 | H103: 45 | I103: 45 | J103: N | K103: 45 | L103: N | M103: 45 | N103: N | O103: 45 | P103: N | Q103: 45 | R103: N
A104: 94 | B104: 1SG15EC096 | C104: SANJAY KUMAR L | D104: 35 | E104: 35 | F104: 35 | G104: 35 | H104: 35 | I104: 35 | J104: N | K104: 35 | L104: N | M104: 35 | N104: N | O104: 35 | P104: N | Q104: 35 | R104: N
A105: 95 | B105: 1SG15EC098 | C105: SHASHANK H S | D105: 45 | E105: 45 | F105: 45 | G105: 45 | H105: 45 | I105: 45 | J105: N | K105: 45 | L105: N | M105: 45 | N105: N | O105: 45 | P105: N | Q105: 45 | R105: N
A106: 96 | B106: 1SG15EC099 | C106: SHASHANK SHEKHAR | D106: 65 | E106: 65 | F106: 65 | G106: 65 | H106: 65 | I106: 65 | J106: Y | K106: 65 | L106: Y | M106: 65 | N106: Y | O106: 65 | P106: Y | Q106: 65 | R106: Y
A107: 97 | B107: 1SG15EC100 | C107: SHASHIKANT KUMAR | D107: 45 | E107: 45 | F107: 45 | G107: 45 | H107: 45 | I107: 45 | J107: N | K107: 45 | L107: N | M107: 45 | N107: N | O107: 45 | P107: N | Q107: 45 | R107: N
A108: 98 | B108: 1SG15EC101 | C108: SHRISH JHA | D108: 35 | E108: 35 | F108: 35 | G108: 35 | H108: 35 | I108: 35 | J108: N | K108: 35 | L108: N | M108: 35 | N108: N | O108: 35 | P108: N | Q108: 35 | R108: N
A109: 99 | B109: 1SG15EC102 | C109: SHUBHAM KUMAR | D109: 75 | E109: 75 | F109: 75 | G109: 75 | H109: 75 | I109: 75 | J109: Y | K109: 75 | L109: Y | M109: 75 | N109: Y | O109: 75 | P109: Y | Q109: 75 | R109: Y
A110: 100 | B110: 1SG15EC103 | C110: SHUBHAM KUMAR(D) | D110: 35 | E110: 35 | F110: 35 | G110: 35 | H110: 35 | I110: 35 | J110: N | K110: 35 | L110: N | M110: 35 | N110: N | O110: 35 | P110: N | Q110: 35 | R110: N
A111: 101 | B111: 1SG15EC104 | C111: SHUBHAM KUMAR MISHRA | D111: 85 | E111: 85 | F111: 85 | G111: 85 | H111: 85 | I111: 85 | J111: Y | K111: 85 | L111: Y | M111: 85 | N111: Y | O111: 85 | P111: Y | Q111: 85 | R111: Y
A112: 102 | B112: 1SG15EC105 | C112: SMITHA B BIRADAR | D112: 45 | E112: 45 | F112: 45 | G112: 45 | H112: 45 | I112: 45 | J112: N | K112: 45 | L112: N | M112: 45 | N112: N | O112: 45 | P112: N | Q112: 45 | R112: N
A113: 103 | B113: 1SG15EC106 | C113: SONAM KUMARI | D113: 35 | E113: 35 | F113: 35 | G113: 35 | H113: 35 | I113: 35 | J113: N | K113: 35 | L113: N | M113: 35 | N113: N | O113: 35 | P113: N | Q113: 35 | R113: N
A114: 104 | B114: 1SG15EC107 | C114: SUBHAM SHEKHAR PANDEY | D114: 75 | E114: 75 | F114: 75 | G114: 75 | H114: 75 | I114: 75 | J114: Y | K114: 75 | L114: Y | M114: 75 | N114: Y | O114: 75 | P114: Y | Q114: 75 | R114: Y
A115: 105 | B115: 1SG15EC108 | C115: SUKANYA KRISHNA POOJARI | D115: 85 | E115: 85 | F115: 85 | G115: 85 | H115: 85 | I115: 85 | J115: Y | K115: 85 | L115: Y | M115: 85 | N115: Y | O115: 85 | P115: Y | Q115: 85 | R115: Y
A116: 106 | B116: 1SG15EC109 | C116: SUMAIYA I | D116: 35 | E116: 35 | F116: 35 | G116: 35 | H116: 35 | I116: 35 | J116: N | K116: 35 | L116: N | M116: 35 | N116: N | O116: 35 | P116: N | Q116: 35 | R116: N
A117: 107 | B117: 1SG15EC110 | C117: SUMALATHA N | D117: 45 | E117: 45 | F117: 45 | G117: 45 | H117: 45 | I117: 45 | J117: N | K117: 45 | L117: N | M117: 45 | N117: N | O117: 45 | P117: N | Q117: 45 | R117: N
A118: 108 | B118: 1SG15EC111 | C118: USHA KIRAN S | D118: 55 | E118: 55 | F118: 55 | G118: 55 | H118: 55 | I118: 55 | J118: N | K118: 55 | L118: N | M118: 55 | N118: N | O118: 55 | P118: N | Q118: 55 | R118: N
A119: 109 | B119: 1SG15EC112 | C119: VAISHNAVI R SHETTY | D119: 45 | E119: 45 | F119: 45 | G119: 45 | H119: 45 | I119: 45 | J119: N | K119: 45 | L119: N | M119: 45 | N119: N | O119: 45 | P119: N | Q119: 45 | R119: N
A120: 110 | B120: 1SG15EC113 | C120: VARSHINI N(D) | D120: 35 | E120: 35 | F120: 35 | G120: 35 | H120: 35 | I120: 35 | J120: N | K120: 35 | L120: N | M120: 35 | N120: N | O120: 35 | P120: N | Q120: 35 | R120: N
A121: 111 | B121: 1SG15EC114 | C121: VEERESH M | D121: 65 | E121: 65 | F121: 65 | G121: 65 | H121: 65 | I121: 65 | J121: Y | K121: 65 | L121: Y | M121: 65 | N121: Y | O121: 65 | P121: Y | Q121: 65 | R121: Y
A122: 112 | B122: 1SG15EC115 | C122: VIKAS KASHYAP | D122: 85 | E122: 85 | F122: 85 | G122: 85 | H122: 85 | I122: 85 | J122: Y | K122: 85 | L122: Y | M122: 85 | N122: Y | O122: 85 | P122: Y | Q122: 85 | R122: Y
A123: 113 | B123: 1SG15EC116 | C123: VINAYAKA L S | D123: 55 | E123: 55 | F123: 55 | G123: 55 | H123: 55 | I123: 55 | J123: N | K123: 55 | L123: N | M123: 55 | N123: N | O123: 55 | P123: N | Q123: 55 | R123: N
A124: 114 | B124: 1SG13EC131 | C124: RAMYA SK JADAV | D124: 55 | E124: 55 | F124: 55 | G124: 55 | H124: 55 | I124: 55 | J124: N | K124: 55 | L124: N | M124: 55 | N124: N | O124: 55 | P124: N | Q124: 55 | R124: N
J125: =COUNTIF(J11:J124,"y") -> 67 | L125: =COUNTIF(L11:L124,"y") -> 67 | N125: =COUNTIF(N11:N124,"y") -> 67 | P125: =COUNTIF(P11:P124,"y") -> 67 | R125: =COUNTIF(R11:R124,"y") -> 67

Sheet Total CO
C2: 50% Weightage each for CIE and SEE
B3: TARGET: 70% ATTAINMENT
C6: CO1 | D6: CO2 | E6: CO3 | F6: CO4 | G6: CO5
B7: IA MARKS ATTAINMENT | C7: 68 | D7: 68 | E7: 82 | F7: 47 | G7: 47
B8: Assignment ATTAINMENT | C8: 100 | D8: 100 | E8: 100 | F8: 100 | G8: 100
B9: CIE: AVG OF TEST & ASSIGNMENT | C9: =(C7+C8)/2 -> 84 | D9: =(D7+D8)/2 -> 84 | E9: =(E7+E8)/2 -> 91 | F9: =(F7+F8)/2 -> 73.5 | G9: =(G7+G8)/2 -> 73.5
B12: CIE | C12: 84 | D12: 84 | E12: 91 | F12: 73.5 | G12: 73.5
B13: SEE | C13: 67 | D13: 67 | E13: 67 | F13: 67 | G13: 67
B14: Attainment | C14: =(C12+C13)/2 -> 75.5 | D14: =(D12+D13)/2 -> 75.5 | E14: =(E12+E13)/2 -> 79 | F14: =(F12+F13)/2 -> 70.25 | G14: =(G12+G13)/2 -> 70.25

Sheet Sheet4
A1: SAPTHAGIRI COLLEGE OF ENGINEERING, BENGALURU - 57.
A2: DEPARTMENT OF ELECTRONICS AND COMMUNICATION ENGINEERING
A3: CO-PO ATTAINMENT (EVEN SEM. 2017-18)
A4: SEM & SEC: II F | F4: Subject: Basic Electronics | N4: Subject Code: 17ELN25
A5: NAME OF THE FACULTY :RAVI SHANKARA M N
E6: II PO Attainment
E7: Subject teacher+ Class teacher= Program coordinator
E8: A: Direct assessment (80%)- Through CO-PO Mapping (By subject teacher)
E9: B: Indirect assessment (20%)-Exit survey (By class teacher)+Course end survey by subject teacher
D10: A: Direct assessment (80%)- Through CO-PO Mapping (By subject teacher)
B12: Mapping of Course outcomes (COs) and Program Ooutcomes (POs)
B13: Note: 1 = Slight 2 = Moderate 3 = Strong
B15: Course outcomes | D15: Program Outcomes | P15: PSO
D16: PO1 | E16: PO2 | F16: PO3 | G16: PO4 | H16: PO5 | I16: PO6 | J16: PO7 | K16: PO8 | L16: PO9 | M16: PO10 | N16: PO11 | O16: PO12 | P16: POS1 | Q16: POS2 | R16: POS3 | S16: POS4
B17: CO-1 | D17: 3 | E17: 3 | F17: 2 | M17: 2 | O17: 3 | P17: 2 | Q17: 2 | R17: NA | S17: NA
B18: CO-2 | D18: 3 | E18: 3 | F18: 2 | M18: 2 | O18: 3 | P18: 2 | Q18: 2 | R18: NA | S18: NA
B19: CO-3 | D19: 3 | E19: 3 | F19: 2 | M19: 2 | O19: 3 | P19: 2 | Q19: 2 | R19: NA | S19: NA
B20: CO - 4 | D20: 3 | E20: 3 | F20: 3 | M20: 2 | O20: 3 | P20: 2 | Q20: 2 | R20: NA | S20: NA
B21: CO-5 | D21: 3 | E21: 3 | F21: 3 | M21: 2 | O21: 3 | P21: 2 | Q21: 2 | R21: NA | S21: NA
B22: Average | D22: =(D17+D18+D19+D21+D20)/5 -> 3 | E22: =(E17+E18+E19+E21+E20)/5 -> 3 | F22: =(F17+F18+F19+F21+F20)/5 -> 2.4 | M22: =(M17+M18+M19+M21+M20)/5 -> 2 | O22: =(O17+O18+O19+O21+O20)/5 -> 3 | P22: =(P17+P18+P19+P21+P20)/5 -> 2 | Q22: 2
B24: Mapping of Course outcomes (COs) and Program Ooutcomes (POs)
B25: Note: 1 = Slight 2 = Moderate 3 = Strong
B27: Course outcomes | D27: Program Outcomes | P27: PSO
D28: PO1 | E28: PO2 | F28: PO3 | G28: PO4 | H28: PO5 | I28: PO6 | J28: PO7 | K28: PO8 | L28: PO9 | M28: PO10 | N28: PO11 | O28: PO12 | P28: POS1 | Q28: POS2 | R28: POS3 | S28: POS4
B29: CO-1 | C29: 75.5 | D29: =(C29/3)*D17 -> 76 | E29: =(D29/3)*E17 -> 76 | F29: =(C29/3)*F17 -> 50 | M29: =(C29/3)*M17 -> 50 | O29: =(C29/3)*O17 -> 76 | P29: =(C29/3)*P17 -> 50.33333333 | Q29: =(D29/3)*Q17 -> 50.33333333 | R29: NA | S29: NA
B30: CO-2 | C30: 75.5 | D30: =(C30/3)*D18 -> 76 | E30: 76 | F30: =(C30/3)*F18 -> 50 | M30: =(C30/3)*M18 -> 50 | O30: =(C30/3)*O18 -> 76 | P30: =(C30/3)*P18 -> 50.33333333 | Q30: 50.33333333 | R30: NA | S30: NA
B31: CO-3 | C31: 79 | D31: 79 | E31: 79 | F31: 53 | M31: 53 | O31: 79 | P31: 52.66666667 | Q31: 52.66666667 | R31: NA | S31: NA
B32: CO-4 | C32: 70.5 | D32: 71 | E32: 71 | F32: 71 | M32: 47 | O32: 71 | P32: 47 | Q32: 47 | R32: NA | S32: NA
B33: CO-5 | C33: 70.5 | D33: 71 | E33: 71 | F33: 71 | M33: 47 | O33: 71 | P33: 47 | Q33: 47 | R33: NA | S33: NA
B34: Average | C34: =(C29+C30+C31+C33+C32)/5 -> 74.2 | D34: 74 | E34: 74 | F34: 59 | M34: 49 | O34: 74 | P34: 49.46666667 | Q34: =(Q29+Q30+Q31+Q33+Q32)/5 -> 49.46666667
B38: Engineering Graduates will be able to: 1. Engineering Knowledge: Apply the knowledge of mathematics, science, engineering fundamentals, and an engineering specialization to the solution of complex engineering problems. 2. Problems Analysis: Identify, formulate, review research literature, and analyze complex, engineering problems reaching sustained conclusions using first principles of mathematics, natural science and engineering science. 3. Design/development of solutions: Design solutions for complex engineering problems and design system components of process that meet the specified needs with appropriate consideration for the public health and safety, and cultural, societal, and environmental consideration. 4. Conduct investigations of complex problems: Use research-based knowledge and research methods including design of experiments analysis and interpretation of data, and synthesis of information to provide valid conclusions. 5. Modern tool usage: create, select, and apply appropriate techniques, resource and modern engineering and IT tools including prediction and modeling to complex engineering activities with an understanding of the limitations. 6. The engineer and society: Apply the reasoning informed by the contextual knowledge to access societal, health, safety, legal and cultural issue and the consequent responsibility relevant to the professional engineering practice. 7. Environment and sustainability: Understanding the impact of the professional engineering solution in the social and environmental contexts, and demonstrate the knowledge of, and need for sustainable development. 8. Ethics: Apply ethics principle and commit to professional ethic and responsibility and norms of the engineering practice. 9. Individual and team work: Function effectively as an individual, and as member or leader in diverse team, and in multidisciplinary setting. 10. Communication: Communicate effectively on complex engineering activities with the engineering community and with society at large, such as, being to comprehend and write effective reports and design documentation, make effective presentations, and give and receive clear instructions. 11. Project management and finance: Demonstrate knowledge and understanding of the engineering and management principles and apply these to one’s own work, as a member and leader in team, to manage projects and in multidisciplinary environments. 12. Life-long learning: Recognizing the need for, and have the preparation and ability to engage in independent and life-long learning in the broadest context of technological change.
B62: CO1 :
B63: CO2:
B64: CO3:
B65: CO4:
